Cogmind - Beta 10.2 @@@ ROGUE MODE // 2020.11.12 @ 16:14:00 // Halloween2020/ForbiddenLore Player: Plexion Result: Destroyed by Combat Programmer with EMDS Performance ------------- Evolutions (7) 3500 Regions Visited (35) 7000 Robots Destroyed (550) 2750 Value Destroyed (24608) 24608 Prototype IDs (244) 4880 Alien Tech Used (1) 200 Bonus (11268) 11268 TOTAL SCORE: 54206 Bonus ------- High Alert Combat Kills 3668 Follower Combat Kills 3143 Entered Garrisons 600 Used RIF Installer 1500 Network Hubs Disabled 200 Aligned with FarCom 300 Met Data Miner 300 Used Data Conduit 3000 Met Zhirov 300 Met R17 at Cetus 500 Pursued by Intercept 500 Friendly Fire -2743 Cogmind --------- Core Integrity 0/1300 Matter 295/300 Energy 23/100 System Corruption 32% Temperature Cool (0) Movement Core (1150) Ox22 Location -3/Research Parts ------- > --- POWER (3) -------- (None) > --- PROPULSION (4) --- Improved Antigrav System > --- UTILITY (11) ----- Advanced Heat Sink High-capacity Storage Unit High-capacity Storage Unit Long-range Sensor Array Terrain Scan Processor Advanced Target Analyzer > --- WEAPON (3) ------- (None) > --- INVENTORY (20) --- Advanced Heat Sink Advanced Energy Well (800) Quantum Capacitor Relay Coupler [NC] (35) Transdimensional Reconstructor Latent Energy Streamer EMDS Enhanced Force Lance Peak State ------------ > --- POWER ------------ Antimatter Reactor Light Antimatter Reactor Particle Reactor > --- PROPULSION ------- Armored Heavy Treads Armored Heavy Treads > --- UTILITY ---------- Advanced Heat Sink High-capacity Storage Unit High-capacity Storage Unit High-capacity Storage Unit Advanced Target Analyzer Experimental Phase Shifter Hardened Heavy Armor Plating Damper Plating > --- WEAPON ----------- Coil Gun 8R-AWN's Boregun Enhanced Force Lance > --- INVENTORY -------- Fusion Reactor Armored Heavy Treads Advanced Heat Sink Advanced Energy Well Long-range Sensor Array Advanced Core Analyzer Improved Armor Integrity Analyzer Quantum Capacitor Experimental Weapon Shielding Relay Coupler [NC] Relay Coupler [Grunt] Relay Coupler [Sentry] Transdimensional Reconstructor Immobilizer Latent Energy Streamer EMDS EMDS 8R-AWN's Boregun Hardcell Cannon AWS/Autocannon Advanced Remote Datajack [Rating: 148] Favorites ----------- Power Antimatter Reactor Engine Improved Ion Engine Power Core Micro Fission Core Reactor Antimatter Reactor Propulsion Improved Treads Treads Improved Treads Leg Advanced Myomer Leg Wheel Armored Huge Wheel Hover Unit Improved Antigrav System Utility High-capacity Storage Unit Device Advanced Heat Sink Storage High-capacity Storage Unit Processor Experimental Signal Interpreter Hackware Relay Coupler [NC] Protection Centrium Medium Armor Plating Weapon Heavy Assault Rifle Energy Gun Heavy Particle Gun Energy Cannon Heavy Phase Cannon Ballistic Gun Heavy Assault Rifle Ballistic Cannon Hardcell Cannon Launcher Mini Grenade Launcher Special Weapon Improved Remote Datajack Piercing Weapon Makeshift Spear Build | -11 -10 -10 -9 -9 -9 -8 -8 -8 -8 -7 -7 -7 -7 -7 -7 -6 -6 -6 -6 -6 -6 -5 -5 -5 -5 -4 -4 -4 -4 -4 -4 -4 -4 -3 -3 ------- Run | Scr Mat Min Mat Min Exi Min Mat Gar Mat Fac Was Fac Low Low Dat Pro Fac Ext Cet Arc Hub Fac Was Fac Gar Fac Was Fac Gar Fac Upp Upp Zhi Pro Res Slots Evolved 14 | . . . 2 . . . 2 . . 2 . . . . . . 2 . . . . 2 . . . 2 . . . . . . . . 2 Power 2 | . . . . . . . . . . . . . . . . . . . . . . 1 . . . . . . . . . . . . 1 Propulsion 2 | . . . . . . . . . . 1 . . . . . . . . . . . . . . . 1 . . . . . . . . . Utility 9 | . . . 2 . . . 2 . . 1 . . . . . . 1 . . . . 1 . . . 1 . . . . . . . . 1 Weapon 1 | . . . . . . . . . . . . . . . . . 1 . . . . . . . . . . . . . . . . . . Parts Attached 559 | 6 17 7 11 1 35 1 45 3 5 28 5 75 2 22 2 4 21 17 19 3 7 16 7 15 9 32 7 2 13 13 3 . 6 . 100 Power 53 | 1 1 1 1 . 3 . 2 . . 2 . 1 . 1 . . . . 2 . . 2 2 1 1 2 2 . 1 2 . . 2 . 23 Engine 9 | 1 1 1 1 . 2 . . . . 2 . . . . . . . . . . . . . 1 . . . . . . . . . . . Core 10 | . . . . . 1 . 2 . . . . . . . . . . . 1 . . 2 2 . 1 1 . . . . . . . . . Reactor 34 | . . . . . . . . . . . . 1 . 1 . . . . 1 . . . . . . 1 2 . 1 2 . . 2 . 23 Propulsion 54 | 2 1 1 1 . 3 . 6 . 2 3 . 7 . . . . 3 . 1 1 . . . 1 . 3 2 . 1 1 . . . . 15 Treads 36 | 2 1 1 1 . 1 . 6 . 2 2 . 4 . . . . 3 . 1 1 . . . 1 . 3 2 . 1 1 . . . . 3 Leg 11 | . . . . . 2 . . . . . . . . . . . . . . . . . . . . . . . . . . . . . 9 Wheel 4 | . . . . . . . . . . 1 . 3 . . . . . . . . . . . . . . . . . . . . . . . Hover 3 | . . . . . . . . . . . . . . . . . . . . . . . . . . . . . . . . . . . 3 Flight . | . . . . . . . . . . . . . . . . . . . . . . . . . . . . . . . . . . . . Utility 217 | 1 4 . 3 . 17 . 10 1 2 15 3 41 2 10 1 1 8 9 8 1 3 6 1 5 3 15 2 2 5 5 2 . 1 . 30 Device 89 | . . . . . 5 . 3 . . 6 . 18 1 4 . 1 3 3 1 1 1 3 . 3 . 12 . 1 2 1 1 . 1 . 18 Storage 19 | 1 1 . 1 . 9 . . . . 1 1 1 1 . . . . . . . . . . . . . . . . 2 1 . . . . Processor 9 | . . . . . . . 2 . . . . 1 . . . . . 1 . . . . . . . 1 . . . . . . . . 4 Hackware 7 | . . . . . . . . . . . 1 . . . . . 1 . . . . . . . 1 . 1 . 1 . . . . . 2 Protection 93 | . 3 . 2 . 3 . 5 1 2 8 1 21 . 6 1 . 4 5 7 . 2 3 1 2 2 2 1 1 2 2 . . . . 6 Artifact . | . . . . . . . . . . . . . . . . . . . . . . . . . . . . . . . . . . . . Weapon 235 | 2 11 5 6 1 12 1 27 2 1 8 2 26 . 11 1 3 10 8 8 1 4 8 4 8 5 12 1 . 6 5 1 . 3 . 32 Energy Gun 13 | . . . . . 3 . 4 . 1 . . 2 . 2 . . . . . . . . . . . 1 . . . . . . . . . Energy Cannon 26 | . . . . . . . . . . . . 2 . . . . 1 2 . . 2 3 1 3 2 3 . . 1 . 1 . . . 5 Ballistic Gun 122 | 2 6 3 3 . 8 . 17 1 . 3 1 11 . 4 1 1 3 4 5 1 2 3 3 5 2 6 1 . 4 3 . . 2 . 17 Ballistic Cannon 5 | . . . . . . . . . . . . . . . . . . . . . . . . . . . . . . 2 . . 1 . 2 Launcher 37 | . 5 2 3 1 . 1 6 1 . . . 7 . 3 . 2 3 1 1 . . . . . 1 . . . . . . . . . . Special Weapon 18 | . . . . . . . . . . 2 1 . . 1 . . 3 1 1 . . 2 . . . 2 . . 1 . . . . . 4 Impact Weapon . | . . . . . . . . . . . . . . . . . . . . . . . . . . . . . . . . . . . . Slashing Weapon . | . . . . . . . . . . . . . . . . . . . . . . . . . . . . . . . . . . . . Piercing Weapon 14 | . . . . . 1 . . . . 3 . 4 . 1 . . . . 1 . . . . . . . . . . . . . . . 4 Special Melee Weapon . | . . . . . . . . . . . . . . . . . . . . . . . . . . . . . . . . . . . . Unidentified Prototypes 13 | . . . . . 6 . 3 . . 1 . . . . . . . . . . . 1 . . . . . . . . . . 2 . . Parts Lost 134 | . 1 1 . . 13 . 6 2 . 1 . 15 . 2 . 1 2 2 3 . . . . 1 2 16 . . 6 3 . . . . 57 Power 26 | . . 1 . . 2 . 1 . . . . 1 . 1 . . . 1 1 . . . . 1 . 2 . . . . . . . . 15 Propulsion 26 | . . . . . 3 . 1 . . . . 5 . . . 1 1 . 1 . . . . . . 2 . . . 1 . . . . 11 Utility 46 | . 1 . . . 4 . . 1 . . . 5 . . . . 1 . 1 . . . . . 1 8 . . 3 1 . . . . 20 Weapon 36 | . . . . . 4 . 4 1 . 1 . 4 . 1 . . . 1 . . . . . . 1 4 . . 3 1 . . . . 11 Highest Loss Streak 15 | . 1 1 . . 7 . 3 1 . 1 . 5 . 1 . 1 1 2 3 . . . . 1 2 7 . . 5 1 . . . . 15 Average Slot Usage (%) 84 | . 94 99 98 100 84 100 94 99 100 94 92 82 84 82 76 69 74 87 88 90 84 79 81 81 79 79 87 78 75 77 73 73 63 78 75 Engine 3 | . 14 13 11 11 7 11 2 . . 5 7 2 . . . . . . . . . . . . 5 1 . . . . . . . . . Core 2 | . . . . . 1 . 6 9 9 1 . . . . . . . . 2 . . 5 5 5 5 7 7 5 5 2 . . . . . Reactor 3 | . . . . . . . . . . . . 4 7 6 7 7 6 5 3 6 6 5 5 4 . 1 2 5 5 7 10 10 9 10 12 Treads 11 | . 28 28 22 22 10 . 14 18 18 15 15 7 7 7 7 . 5 13 8 10 13 11 11 11 11 10 9 10 10 10 10 10 10 10 7 Leg 1 | . . . . . 8 22 2 . . . . . . . . . . . . . . . . . . . . . . . . . . . 2 Wheel 1 | . . . . . . . . . . 6 7 6 7 7 7 7 1 . . . . . . . . . . . . . . . . . . Device 6 | . . . . . 3 11 5 . . 5 . 9 6 4 5 6 8 7 6 6 5 8 5 10 5 12 20 12 13 10 9 10 9 10 10 Storage 19 | . 14 14 13 22 23 33 27 27 27 17 20 23 25 28 23 23 20 20 20 20 20 17 17 17 17 15 15 15 15 15 15 15 15 15 13 Processor 2 | . . . . . . . 5 9 9 2 . 1 4 . . . . 3 6 6 2 . . . . 3 5 5 5 5 5 5 5 5 8 Protection 11 | . 8 14 29 22 8 . 12 18 18 21 17 10 7 10 9 7 7 16 19 20 15 12 17 11 16 11 4 7 5 6 10 10 10 10 5 Energy Cannon 1 | . . . . . . . . . . . . . . . . . 3 5 . . 1 3 5 6 5 1 . . 1 . 4 5 . . . Ballistic Gun 9 | . 24 23 21 12 12 11 16 9 9 3 5 4 . 2 1 . 3 3 19 19 18 8 10 9 8 8 5 5 5 7 . . . 10 6 Launcher 1 | . 3 4 . 9 4 9 . 8 5 . . 1 7 1 . 6 2 . . . . . . . . . . . . . . . . . . Piercing Weapon 2 | . . . . . 1 1 . . . 2 . 6 7 5 7 7 6 2 . . . . . . . . . . . . . . . . 2 Naked Turns . | . . . . . . . . . . . . . . . . . . . . . . . . . . . . . . . . . . . . Heaviest Build 250 | 11 46 44 59 59 169 112 118 118 115 124 98 109 129 169 170 170 179 179 157 157 188 206 213 207 200 202 184 187 193 192 201 201 191 191 250 Greatest Support 160 | 40 40 40 40 40 60 60 60 46 46 66 12 98 28 28 28 28 98 98 108 103 103 103 80 110 110 160 155 145 145 145 140 140 140 140 140 Greatest Overweight (x) 55 | 3 2 1 1 1 54 1 5 2 2 10 8 8 4 6 6 6 54 1 1 1 1 2 2 2 1 1 1 1 1 1 1 1 1 1 55 Average Overweight (x) 2 | . . . 1 1 2 1 1 2 2 5 6 4 3 4 5 5 3 1 1 1 1 1 2 1 1 . . 1 1 . 1 1 1 1 1 Largest Inventory Capacity 48 | 6 12 12 16 16 44 28 28 28 28 40 40 40 48 48 28 28 28 28 28 28 28 28 28 28 28 28 28 28 28 28 28 28 28 28 28 Average Capacity 28 | 5 10 12 12 16 28 28 28 28 28 30 37 40 42 44 28 28 28 28 28 28 28 28 28 28 28 28 28 28 28 28 28 28 28 28 26 Most Carried 48 | 4 12 12 16 16 28 28 28 28 28 32 39 40 48 48 28 23 23 24 28 28 28 28 28 28 28 26 28 27 28 28 28 27 28 28 28 Average Carried 26 | 2 9 11 12 15 20 28 27 27 27 30 34 38 42 43 25 23 20 21 27 27 27 27 27 27 27 20 24 27 26 27 27 27 27 27 23 Final Capacity 48 | 6 12 12 16 16 28 28 28 28 28 32 40 40 48 28 28 28 28 28 28 28 28 28 28 28 28 28 28 28 28 28 28 28 28 28 20 Final Carried 48 | 4 12 12 16 16 28 28 28 28 28 32 39 40 48 28 23 23 19 23 28 28 28 27 28 28 25 19 27 27 28 27 27 27 27 28 10 Class Distribution -------------------- 52% | Hauler-Mutant 31% | Scavenger-Mutant 5% | Scavenger-Tank 5% | Mutant Dominant Class ---------------- Mutant | -10/Materials Mutant | -10/Mines Scavenger-Mutant | -9/Materials Scavenger-Mutant | -9/Mines Hauler-Mutant | -9/Exiles Hauler-Mutant | -8/Mines Hauler-Mutant | -8/Materials Hauler-Mutant | -8/Garrison Hauler-Mutant | -8/Materials Hauler-Mutant | -7/Factory Hauler-Mutant | -7/Waste Hauler-Mutant | -7/Factory Hauler-Mutant | -7/Lower Caves Hauler-Mutant | -7/Lower Caves Hauler-Mutant | -7/Data Miner Hauler-Mutant | -6/Proximity Caves Hauler-Mutant | -6/Factory Hauler-Mutant | -6/Extension Scavenger-Tank | -6/Cetus Scavenger-Tank | -6/Archives Scavenger-Tank | -6/Hub_04(d) Scavenger-Mutant | -5/Factory Scavenger-Mutant | -5/Waste Scavenger-Mutant | -5/Factory Scavenger-Mutant | -5/Garrison Scavenger-Mutant | -4/Factory Scavenger-Mutant | -4/Waste Scavenger-Mutant | -4/Factory Scavenger-Mutant | -4/Garrison Bothacker-Mutant | -4/Factory Scavenger-Mutant | -4/Upper Caves Scavenger-Mutant | -4/Upper Caves Hauler-Mutant | -4/Zhirov Scavenger-Mutant | -3/Proximity Caves Scavenger-Mutant | -3/Research Resources | -11 -10 -10 -9 -9 -9 -8 -8 -8 -8 -7 -7 -7 -7 -7 -7 -6 -6 -6 -6 -6 -6 -5 -5 -5 -5 -4 -4 -4 -4 -4 -4 -4 -4 -3 -3 ----------- Run | Scr Mat Min Mat Min Exi Min Mat Gar Mat Fac Was Fac Low Low Dat Pro Fac Ext Cet Arc Hub Fac Was Fac Gar Fac Was Fac Gar Fac Upp Upp Zhi Pro Res Matter Collected 16602 | 222 307 166 445 174 1227 84 1394 81 205 345 301 1362 10 448 43 87 456 546 662 146 454 428 154 280 577 762 725 . 448 602 110 35 . 87 3229 Remotely . | . . . . . . . . . . . . . . . . . . . . . . . . . . . . . . . . . . . . Salvage Created 25601 | . 527 92 451 305 634 142 1897 227 205 549 1001 2099 25 548 . 176 864 309 1099 418 926 659 408 762 659 1309 930 . 1122 715 86 84 . . 6373 Parts 1289 | . 44 18 37 34 66 18 97 20 11 38 22 122 1 11 . 3 44 11 50 25 45 40 17 22 40 59 28 . 27 35 2 3 . . 299 Haulers Intercepted 5 | . . . 1 . . . 3 . . . . 1 . . . . . . . . . . . . . . . . . . . . . . . Recyclers Shooed 13 | . 1 . . . . . 1 . . . . 2 . . . . 1 . . . . . . . . 1 . . . . . . . . 7 Parts Field Recycled . | . . . . . . . . . . . . . . . . . . . . . . . . . . . . . . . . . . . . Retrieved Matter . | . . . . . . . . . . . . . . . . . . . . . . . . . . . . . . . . . . . . Parts Self-Destructed 19 | . . . . . . . . . . . . . 1 7 . 3 . . . . . . . . . . . . . . 5 3 . . . Prevented 4 | . . . . . . . . . . . . . . 2 . . . . . . . . . . . . . . . . 2 . . . . Kills | -11 -10 -10 -9 -9 -9 -8 -8 -8 -8 -7 -7 -7 -7 -7 -7 -6 -6 -6 -6 -6 -6 -5 -5 -5 -5 -4 -4 -4 -4 -4 -4 -4 -4 -3 -3 ------- Run | Scr Mat Min Mat Min Exi Min Mat Gar Mat Fac Was Fac Low Low Dat Pro Fac Ext Cet Arc Hub Fac Was Fac Gar Fac Was Fac Gar Fac Upp Upp Zhi Pro Res Combat Hostiles Destroyed 431 | . 18 9 11 13 5 10 35 16 6 9 3 47 . 15 . 10 20 6 20 4 9 10 . 10 12 21 2 . 15 9 1 1 . . 84 Melee 28 | . . . . . . . . . . 5 . 13 . 2 . . 1 1 . . . . . . . . . . . . . . . . 6 Guns 203 | . 10 3 1 1 1 . 26 . 5 4 3 7 . 1 . 1 1 2 17 4 9 9 . 6 7 17 2 . 6 9 . . . . 51 Cannons 47 | . . . . . . . . . . . . 3 . . . . 6 . . . . . . 3 2 4 . . 6 . . 1 . . 22 AOE 141 | . 8 6 10 12 4 10 9 16 1 . . 24 . 11 . 9 9 3 3 . . . . . 2 . . . . . . . . . 4 Classes Destroyed 24 | . 4 1 5 1 2 . 4 . . 1 1 1 1 . . . . . . . . . 1 . 2 . . . . . . . . . . Worker 34 | . . 1 2 . . 1 4 . . . . 6 . . . . 2 . . . 4 3 . . . 4 . . . . . . . . 7 Builder 13 | . . . 1 1 . . 2 . . . . . . . . . . 1 . . 2 . . . . 1 . . . 1 . . . . 4 Tunneler 11 | . . . 1 5 . . 2 . . . . 1 . . . . 1 . . . 1 . . . . . . . . . . . . . . Hauler 5 | . . . 1 . . . 3 . . . . 1 . . . . . . . . . . . . . . . . . . . . . . . Recycler 13 | . 1 . 2 2 . . 2 . . . . 3 . . . . . . . . 1 . . . . . . . . . . . . . 2 Minesweeper 1 | . . . . . . . . . . . . . 1 . . . . . . . . . . . . . . . . . . . . . . Mechanic 4 | . . . 1 . . . . . . . . 1 . . . . . . . . . . . . . . . . . . . . . . 2 Operator 7 | . 2 . 1 . . . 1 . . . . 1 . . . . . . . 2 . . . . . . . . . . . . . . . Turret 1 | . . . . . 1 . . . . . . . . . . . . . . . . . . . . . . . . . . . . . . Watcher 13 | . . . . . . . 2 . . 1 . 3 . . . . . . 1 . 2 . . . . . . . . 1 . . . . 3 Swarmer 99 | . 9 9 7 7 . 7 6 10 2 . . 7 . 2 . 3 4 1 6 . . . . . 4 4 . . . . . . . . 11 Grunt 164 | . 9 . 3 4 . 3 18 4 2 . . 22 . 3 . 5 10 5 5 . 2 3 . 8 . 6 . . 11 4 . . . . 37 Brawler 15 | . . . 1 . . . . 2 . . . 3 . 4 . 1 1 . . . . . . 1 . . . . . . . . . . 2 Duelist 14 | . . . . . . . 1 . . . . 1 . 4 . 1 1 . 1 . . . . . . . . . 2 . . . . . 3 Protector 1 | . . . . . . . . . . . . 1 . . . . . . . . . . . . . . . . . . . . . . . Sentry 42 | . . . . . . . 9 . . 4 . 5 . 2 . . 2 . . 4 3 2 . . . 2 . . . 3 1 1 . . 4 Specialist 2 | . . . . . . . . . . . . . . . . . . . . . . . . . 2 . . . . . . . . . . Hunter 31 | . . . . . . . 1 . 2 . . 4 . 1 . . 2 . 2 . . 1 . . 3 6 . . 2 . . . . . 7 Programmer 34 | . . . . . . . . . . 5 . 4 . . . . . . . . 1 4 . 1 2 3 . . . 2 . . . . 12 Behemoth 1 | . . . . . . . . . . . . . . . . . . . . . . . . . 1 . . . . . . . . . . Compactor 5 | . . . . . . . . . . . 3 . . . . . . . . . . . . . . . 2 . . . . . . . . Cetus Guard 6 | . . . . . . . . . . . . . . . . . . . 6 . . . . . . . . . . . . . . . . Lightning 3 | . . . . . . . . . . . . . . . . . . . . . 3 . . . . . . . . . . . . . . Tracker 4 | . . . . . . . . . . . . . . . . . . . . . . . . . . . . . . . . . . . 4 Combat Programmer 4 | . . . . . . . . . . . . . . . . . . . . . . . . . . . . . . . . . . . 4 Zionite 8 | . . . . . 8 . . . . . . . . . . . . . . . . . . . . . . . . . . . . . . Assembled 6 | . . . . 2 4 . . . . . . . . . . . . . . . . . . . . . . . . . . . . . . Surgeon 2 | . . . . . . . . . . . . . . . . . . . . . . . . 1 . . 1 . . . . . . . . Thug 6 | . . . . . . . . . . . . . . . . . . . . . . . 1 2 . . 3 . . . . . . . . Martyr 3 | . . . . . . . . . . . . . . . . . . . . . . . 1 . . . 2 . . . . . . . . Guerrilla 1 | . . . . . . . . . . . . . . . . . . 1 . . . . . . . . . . . . . . . . . Best Kill Streak 17 | . 4 3 6 17 6 4 6 12 2 2 1 6 1 9 . 4 5 3 5 4 7 6 . 3 5 10 1 . 7 7 1 1 . . 10 Combat Bots Only 12 | . 3 3 4 11 4 4 4 12 2 1 1 6 . 9 . 4 4 3 4 4 2 3 . 3 5 8 1 . 7 6 1 1 . . 8 Max Kills in Single Turn 5 | . 3 3 5 3 3 2 3 3 1 1 1 3 1 2 . 2 4 2 3 1 4 3 1 1 2 2 2 . 1 1 1 1 . . 4 Gunslinging 1 | . . . . . . . . . . . . . . . . . . . 1 . . . . . . . . . . . . . . . . Exploded 4 | . 2 3 3 2 3 2 3 3 1 . . 2 . 2 . 2 3 2 3 . . . . . 2 . . . . . . . . . 4 Melee 1 | . . . . . . . . . . 1 . 1 . 1 . . 1 1 . . . . . . . . . . . . . . . . 1 Uniques/NPCs Destroyed 4 | . . . . . 4 . . . . . . . . . . . . . . . . . . . . . . . . . . . . . . 8R-AWN (-9/Exiles) EX-BIN (-9/Exiles) EX-HEX (-9/Exiles) EX-DEC (-9/Exiles) Combat | -11 -10 -10 -9 -9 -9 -8 -8 -8 -8 -7 -7 -7 -7 -7 -7 -6 -6 -6 -6 -6 -6 -5 -5 -5 -5 -4 -4 -4 -4 -4 -4 -4 -4 -3 -3 -------- Run | Scr Mat Min Mat Min Exi Min Mat Gar Mat Fac Was Fac Low Low Dat Pro Fac Ext Cet Arc Hub Fac Was Fac Gar Fac Was Fac Gar Fac Upp Upp Zhi Pro Res Damage Taken 40015 | . 472 180 154 207 2121 227 2365 231 262 858 . 3595 . 890 . 743 1209 479 925 142 486 302 . 641 1186 5175 . . 2375 996 . . . . 13794 Core 3605 | . 160 36 12 . 270 14 390 32 35 97 . 340 . 75 . 84 33 16 96 28 17 . . 21 46 285 . . 152 44 . . . . 1322 Absorbed by Shields 34 | . . . . . . . . . . . . . . . . . . 34 . . . . . . . . . . . . . . . . . Reduced by Siege Mode 604 | . . . . . . . . . . . . . . . . . . . . . . . . . . 258 . . . 54 . . . . 292 Core Remaining (%) 50 | 100 . 21 . . . 26 . . 16 . . . . . . 14 . . . . 77 . . . 93 . . . . . . . . 58 . Volleys Fired 1491 | . 42 12 24 20 135 10 143 22 18 24 27 82 . 37 . 23 55 52 35 9 39 36 14 39 47 118 83 1 45 44 10 1 . 5 239 Largest 3 | . 2 2 2 2 2 1 2 2 2 2 1 2 . 2 . 1 2 2 3 3 3 3 1 3 2 2 1 1 3 3 1 1 . 1 3 Hottest 168 | . 46 46 46 46 90 30 78 53 78 83 40 108 . 56 . 30 69 118 100 100 100 168 30 168 70 123 40 81 141 90 70 70 . 65 100 Shots Fired 2467 | . 74 21 43 23 226 10 266 24 33 43 28 103 . 38 . 23 59 71 101 27 91 73 14 57 77 193 85 1 73 69 11 2 . 6 502 Gun 1917 | . 64 18 38 6 224 . 255 7 30 41 20 53 . 16 . 6 8 23 99 27 83 51 14 33 60 150 79 1 57 48 . . . . 406 Cannon 323 | . . . . . . . . . . . . 18 . . . . 37 16 . . 8 20 . 24 16 42 . . 13 21 11 2 . 6 89 Launcher 164 | . 10 3 5 17 2 10 11 17 3 . . 32 . 21 . 17 8 6 1 . . . . . 1 . . . . . . . . . . Special 63 | . . . . . . . . . . 2 8 . . 1 . . 6 26 1 . . 2 . . . 1 6 . 3 . . . . . 7 Kinetic 1911 | . 64 18 38 6 189 . 252 7 15 19 20 49 . 6 . 6 8 23 99 27 83 51 14 33 60 142 78 . 35 69 9 1 . 6 484 Thermal 176 | . . . . . . . 3 . 15 22 . 22 . . . . . 4 . . 8 16 . 15 . 47 1 1 22 . . . . . . Explosive 164 | . 10 3 5 17 2 10 11 17 3 . . 32 . 21 . 17 8 6 1 . . . . . 1 . . . . . . . . . . Electromagnetic 153 | . . . . . 35 . . . . . . . . 10 . . 37 12 . . . 4 . 9 16 3 . . 13 . 2 1 . . 11 Robot Hit Streak 33 | . 11 3 6 2 15 4 23 5 7 11 6 15 . 7 . 10 16 15 20 8 8 10 9 18 25 11 10 . 29 26 27 1 . . 33 Robot Miss Streak 14 | . 4 4 5 1 3 . 2 1 3 3 4 14 . 3 . 3 5 5 3 2 3 2 1 2 3 5 2 . 3 2 1 . . . 5 Penetration Max 2 | . . . . . 1 . . . . . 1 . . . . . . 1 1 . 1 1 2 1 1 1 2 . 1 1 . . . . 2 Secondary Targets 23 | . . 1 . . 1 . 2 . . . . 1 . . . . . . 5 . 1 1 . . . 1 . . 2 3 . . . . 5 Max Gunslinging Chain 1 | . . 1 . . 1 . 1 . . . . 1 . . . . . . 1 . 1 1 . . . 1 . . 1 1 . . . . 1 Capacitor 9 | . . . . . . . . . . . . . . . . . . . . . . . . . . 9 . . . . . . . . . Autonomous 71 | . . . . . . . . . . . . . . . . . . . . . . . . . . . . . . . . . . . 71 Shots Hit Robots 1813 | . 37 8 25 6 161 4 206 12 23 47 17 118 3 34 1 14 44 56 77 16 48 45 13 34 58 129 64 . 57 51 1 1 . . 403 Core Hits 1095 | . 25 11 28 28 51 16 100 25 11 27 3 144 1 46 . 26 47 25 38 13 31 21 7 21 23 61 13 . 24 21 1 1 . . 206 Critical Hits 271 | . . . 1 . 11 . 1 . . 1 11 6 . 2 . . 1 1 23 5 16 11 14 8 11 8 39 . 7 12 . 1 . . 81 Critical Kills 89 | . . . . . 3 . . . . . 3 2 . . . . . 1 9 3 6 6 3 4 3 2 8 . 1 6 . 1 . . 28 Critical Parts Destroyed 130 | . . . 1 . 6 . 1 . . 1 1 4 . 1 . . 1 . 11 2 7 4 6 3 6 5 14 . 6 6 . . . . 44 Melee Attacks 256 | . . . . . 12 1 . . . 18 . 118 4 21 1 7 23 6 3 . . . . . . . . . . . . . . . 42 Impact . | . . . . . . . . . . . . . . . . . . . . . . . . . . . . . . . . . . . . Slashing . | . . . . . . . . . . . . . . . . . . . . . . . . . . . . . . . . . . . . Piercing 256 | . . . . . 12 1 . . . 18 . 118 4 21 1 7 23 6 3 . . . . . . . . . . . . . . . 42 Sneak Attacks 16 | . . . . . . . . . . . . 12 2 . 1 . 1 . . . . . . . . . . . . . . . . . . Combat Hostiles . | . . . . . . . . . . . . . . . . . . . . . . . . . . . . . . . . . . . . Follow-up Attacks . | . . . . . . . . . . . . . . . . . . . . . . . . . . . . . . . . . . . . Damage Inflicted 65694 | . 1071 443 1156 1135 2484 674 3732 1175 453 937 271 7116 218 2064 99 1526 3019 1559 2065 447 2321 1398 491 2067 1813 3971 1534 . 2176 1446 91 45 . . 16697 Guns 31466 | . 479 106 352 43 2267 . 2884 25 324 563 271 675 . 179 . 142 115 525 1924 447 1756 847 491 756 1081 2904 1534 . 1230 1083 . . . . 8463 Cannons 11493 | . . . . . . . . . . . . 408 . . . . 967 318 . . . 343 . 675 442 1065 . . 946 363 91 45 . . 5830 Explosions 17896 | . 592 337 804 1092 183 647 848 1150 129 . . 3848 . 1605 . 1384 1787 644 141 . 565 208 . 636 290 . . . . . . . . . 1006 Melee 4786 | . . . . . 30 27 . . . 374 . 2185 218 280 99 . 150 72 . . . . . . . . . . . . . . . . 1351 Ramming 53 | . . . . . 4 . . . . . . . . . . . . . . . . . . . . 2 . . . . . . . . 47 Kinetic 35966 | . 479 106 352 43 2242 . 2832 25 146 243 271 631 . 54 . 142 115 525 1924 447 1756 847 491 756 1081 2844 1534 . 731 1446 . . . . 13903 Thermal 3401 | . . . . . . . 52 . 178 320 . 452 . 39 . . . 34 . . . 322 . 440 . 1065 . . 499 . . . . . . Explosive 15788 | . 592 337 804 1092 183 647 848 1150 129 . . 3848 . 1566 . 1384 1787 644 141 . . . . 346 290 . . . . . . . . . . Electromagnetic 5700 | . . . . . 25 . . . . . . . . 125 . . 967 284 . . 565 229 . 525 442 60 . . 946 . 91 45 . . 1396 Impact . | . . . . . . . . . . . . . . . . . . . . . . . . . . . . . . . . . . . . Slashing . | . . . . . . . . . . . . . . . . . . . . . . . . . . . . . . . . . . . . Piercing 4786 | . . . . . 30 27 . . . 374 . 2185 218 280 99 . 150 72 . . . . . . . . . . . . . . . . 1351 Highest Corruption 32 | . . 1 . . . . . . . 1 27 27 1 1 . . . 1 1 1 2 1 1 1 1 13 13 13 13 14 14 14 14 14 32 Average Corruption 7 | . . 1 . . . . . . . 1 13 11 1 1 . . . 1 1 1 1 1 1 1 1 9 13 13 13 13 14 14 14 14 10 Corruption Purged 29 | . . . . . . . . . . . . 28 . 1 . . . . . . . . . . . . . . . . . . . . . Effects 558 | . . 4 . . . . . . . 1 19 136 1 1 . . . 1 4 1 3 1 2 5 1 34 41 9 48 40 34 17 17 17 121 Message Errors 93 | . . 1 . . . . . . . 1 2 28 . . . . . . 2 1 . 1 1 3 1 4 3 1 8 7 5 3 2 3 16 Matter Fused 86 | . . . . . . . . . . . 2 17 . . . . . . . . . . . . . 6 5 2 9 4 10 4 6 8 13 Heat Flow Errors 62 | . . . . . . . . . . . 1 21 . . . . . . . . . . . . . 2 9 1 4 6 . 2 2 1 13 Energy Discharges 51 | . . 2 . . . . . . . . . 13 1 1 . . . . . . 1 . 1 1 . 1 4 1 4 3 2 2 1 1 12 Parts Rejected 6 | . . . . . . . . . . . . 4 . . . . . . . . . . . . . . . . . . . . . . 2 Data Loss (minor) 62 | . . 1 . . . . . . . . 2 12 . . . . . 1 . . 1 . . 1 . 3 4 . 7 6 5 4 1 3 11 Data Loss (major) 16 | . . . . . . . . . . . 2 2 . . . . . . . . . . . . . . 1 . 2 3 2 . 2 . 2 Misfires 13 | . . . . . . . . . . . 1 3 . . . . . . . . . . . . . 1 3 . 1 . 1 1 . 1 1 Alerts 2 | . . . . . . . . . . . . . . . . . . . . . . . . . . 1 . . . . . . 1 . . Misdirections 60 | . . . . . . . . . . . 3 18 . . . . . . . . . . . . . 2 4 4 5 2 7 1 2 . 12 Targeting Errors 94 | . . . . . . . . . . . 6 17 . . . . . . 2 . 1 . . . . 12 7 . 6 8 2 . . . 33 Weapon Failures 13 | . . . . . . . . . . . . 1 . . . . . . . . . . . . . 2 1 . 2 1 . . . . 6 Overload Shots . | . . . . . . . . . . . . . . . . . . . . . . . . . . . . . . . . . . . . Overflow Damage 1849 | . 40 10 46 29 . 5 . 33 . . . 406 51 34 . 14 106 19 . . 73 14 . 123 16 30 . . 35 . . . . . 765 Projectiles 857 | . . . . . . . . . . . . . . . . . 2 . . . . 14 . 20 . 30 . . 35 . . . . . 756 Explosions 615 | . 40 10 46 29 . 5 . 33 . . . 105 . 31 . 14 82 19 . . 73 . . 103 16 . . . . . . . . . 9 Melee 377 | . . . . . . . . . . . . 301 51 3 . . 22 . . . . . . . . . . . . . . . . . . Knockbacks 38 | . . . . . . . . . . . . . . . . . . . . . . . . . . . . . . . . . . . 38 Impact . | . . . . . . . . . . . . . . . . . . . . . . . . . . . . . . . . . . . . Kinetic 28 | . . . . . . . . . . . . . . . . . . . . . . . . . . . . . . . . . . . 28 Secondary 10 | . . . . . . . . . . . . . . . . . . . . . . . . . . . . . . . . . . . 10 Self-Inflicted Damage 1268 | . 111 73 17 105 36 98 . 42 . . . 174 . 98 . 104 34 . . . 7 . . 293 27 . . . . . . . . . 49 Shots 41 | . 4 2 1 3 1 4 . 3 . . . 6 . 4 . 4 1 . . . 1 . . 3 1 . . . . . . . . . 3 Rammed 7 | . . . . . 1 . . . . . . . . . . . . . . . . . . . . 1 . . . . . . . . 5 Targets Rammed 8 | . . . . . 1 . . . . . . . . . . . . . . . . . . . . 1 . . . . . . . . 6 Kicked . | . . . . . . . . . . . . . . . . . . . . . . . . . . . . . . . . . . . . Crushed 1 | . . . . . . . . . . . . . . . . . . . . . . . . . . . . . . . . . . . 1 Highest Temperature 400 | . 6 . 51 18 156 . 54 18 144 283 232 367 . 61 . 168 266 13 . . 366 400 . 170 12 378 195 138 207 268 80 158 271 242 256 Average Temperature 65 | . 2 . 16 6 67 . 15 9 57 58 52 91 . 20 . 76 78 5 . . 132 94 . 38 5 63 88 64 64 49 31 60 133 140 99 Received Heat Transfer 5790 | . 96 . 33 6 6 36 1026 72 81 150 . 981 . 183 . 126 249 150 81 9 120 12 . 90 12 336 . . 321 198 . . . . 1416 Effects 10 | . . . . . . . . . . 1 . . . . . . 2 . . . 1 4 . . . 1 . . . 1 . . . . . Shutdowns 2 | . . . . . . . . . . . . . . . . . . . . . . 1 . . . 1 . . . . . . . . . Energy Bleed 5 | . . . . . . . . . . 1 . . . . . . 2 . . . . 1 . . . . . . . 1 . . . . . Short Circuit 2 | . . . . . . . . . . . . . . . . . . . . . . 2 . . . . . . . . . . . . . Damage (minor) 1 | . . . . . . . . . . . . . . . . . . . . . 1 . . . . . . . . . . . . . . Siege Activations 11 | . . . . . . . . . . . . . . . . . . . . . 1 . . . . 3 . . . 1 . . . . 6 Total Turns 338 | . . . . . . . . . . . . . . . . . . . . . 9 . . . . 116 . . . 46 . . . . 167 Longest Duration 57 | . . . . . . . . . . . . . . . . . . . . . 9 . . . . 43 . . . 46 . . . . 57 Robots Corrupted 14 | . . . . . . . . . . . . . . 1 . . 3 . . . . 1 . 2 1 . . . 3 . 1 . . . 2 Combat Hostiles 12 | . . . . . . . . . . . . . . 1 . . 3 . . . . 1 . 1 1 . . . 3 . 1 . . . 1 Parts Fried 54 | . . . . . . . . . . . . . . 1 . . 7 . . . 5 1 . 5 5 1 . . 17 . 2 . . . 10 Impact Corruptions 5 | . . . . . . . . . . . . . . . . . . . . . . . . . . . . . . . . . . . 5 Robots Melted . | . . . . . . . . . . . . . . . . . . . . . . . . . . . . . . . . . . . . Combat Hostiles . | . . . . . . . . . . . . . . . . . . . . . . . . . . . . . . . . . . . . Parts Melted 10 | . . . . . . . . . 1 1 . 3 . . . . . . . . . 2 . . . . . . 2 . . . . . 1 Heat Transferred 3996 | . . . . . . . 111 . 370 592 . 887 . 50 . . . 50 . . . 272 . 398 . 674 . . 592 . . . . . . Parts Sabotaged . | . . . . . . . . . . . . . . . . . . . . . . . . . . . . . . . . . . . . Parts Stolen 3 | . . . . . . . . . . . . . . 3 . . . . . . . . . . . . . . . . . . . . . Parts Stripped . | . . . . . . . . . . . . . . . . . . . . . . . . . . . . . . . . . . . . Power Chain Reactions 3 | . . . . . . . . . . . . . . 1 . . . . . . . 1 . 1 . . . . . . . . . . . Missiles Intercepted . | . . . . . . . . . . . . . . . . . . . . . . . . . . . . . . . . . . . . Latent Energy Used 513 | . . . . . . . . . . . . . . . . . . . . . . . . . . 200 . . . . . . . . 313 LE Corruption 10 | . . . . . . . . . . . . . . . . . . . . . . . . . . 3 . . . . . . . . 7 Alert | -11 -10 -10 -9 -9 -9 -8 -8 -8 -8 -7 -7 -7 -7 -7 -7 -6 -6 -6 -6 -6 -6 -5 -5 -5 -5 -4 -4 -4 -4 -4 -4 -4 -4 -3 -3 ------- Run | Scr Mat Min Mat Min Exi Min Mat Gar Mat Fac Was Fac Low Low Dat Pro Fac Ext Cet Arc Hub Fac Was Fac Gar Fac Was Fac Gar Fac Upp Upp Zhi Pro Res Peak Influence 1249 | . 285 211 179 403 . 338 611 940 648 354 65 1065 . . . . 399 1249 978 549 580 542 189 655 666 588 206 2 271 272 . . . . 1119 Initial 683 | . . 66 44 44 . . 131 375 458 294 50 45 . . . . 44 189 683 391 191 222 189 . 380 349 156 . 1 142 . . . . . Average 327 | . 154 107 75 225 . 204 433 744 512 162 62 420 . . . . 220 508 837 509 281 303 106 298 504 389 98 1 147 161 . . . . 370 Maximum Alert Level 4 | . 1 1 . 2 . 1 2 3 2 1 . 3 . . . . 1 4 3 2 2 2 . 2 2 2 1 . 1 1 . . . . 4 Low Security (%) 41 | 100 80 93 100 32 . 36 8 . . 80 100 31 . . . . 30 6 . . 49 . 100 28 . . 98 100 51 73 . . . . 39 Level 1 24 | . 19 6 . 60 . 63 22 5 . 19 . 24 . . . . 69 41 . 12 1 84 . 33 14 56 1 . 48 26 . . . . 11 Level 2 23 | . . . . 7 . . 68 37 100 . . 21 . . . . . 28 5 87 48 15 . 37 85 43 . . . . . . . . 28 Level 3 10 | . . . . . . . . 56 . . . 23 . . . . . 14 94 . . . . . . . . . . . . . . . 19 Level 4 . | . . . . . . . . . . . . . . . . . . 9 . . . . . . . . . . . . . . . . 1 Level 5 . | . . . . . . . . . . . . . . . . . . . . . . . . . . . . . . . . . . . . High Security . | . . . . . . . . . . . . . . . . . . . . . . . . . . . . . . . . . . . . Max Security . | . . . . . . . . . . . . . . . . . . . . . . . . . . . . . . . . . . . . Squads Dispatched 86 | . 4 . . . . . 5 . 1 5 . 15 . 1 . . 2 12 1 . 2 2 . 7 . 3 . . . 3 . . . . 23 Investigation 11 | . 1 . . . . . 2 . . . . 2 . . . . . 3 1 . . . . 1 . . . . . 1 . . . . . Extermination 20 | . . . . . . . . . . 4 . 4 . . . . . . . . 1 2 . 3 . 1 . . . 2 . . . . 3 Reinforcement 33 | . 3 . . . . . 3 . 1 1 . 4 . . . . 2 6 . . 1 . . 2 . 2 . . . . . . . . 8 Assault 10 | . . . . . . . . . . . . 2 . 1 . . . 3 . . . . . 1 . . . . . . . . . . 3 Garrison 3 | . . . . . . . . . . . . 3 . . . . . . . . . . . . . . . . . . . . . . . Intercept 9 | . . . . . . . . . . . . . . . . . . . . . . . . . . . . . . . . . . . 9 Construction Impeded 8 | . . . . . . . . . . . . 1 . . . . 1 2 . . 1 . . . . 1 . . . . . . . . 2 Haulers Reinforced 7 | . . . . . . . . . . . . 1 . . . . . . . . . . . 1 . . . . . . . . . . 5 Stealth | -11 -10 -10 -9 -9 -9 -8 -8 -8 -8 -7 -7 -7 -7 -7 -7 -6 -6 -6 -6 -6 -6 -5 -5 -5 -5 -4 -4 -4 -4 -4 -4 -4 -4 -3 -3 --------- Run | Scr Mat Min Mat Min Exi Min Mat Gar Mat Fac Was Fac Low Low Dat Pro Fac Ext Cet Arc Hub Fac Was Fac Gar Fac Was Fac Gar Fac Upp Upp Zhi Pro Res Distress Signals 46 | . 1 . 1 2 . . 8 . . . . 3 . . . . 3 3 2 . 3 . . 1 . 6 . . . 2 . . . . 11 Communications Jammed . | . . . . . . . . . . . . . . . . . . . . . . . . . . . . . . . . . . . . Distress Signals . | . . . . . . . . . . . . . . . . . . . . . . . . . . . . . . . . . . . . Times Spotted 685 | . 25 11 20 15 18 10 56 17 8 18 5 64 . 21 . 10 29 63 22 4 15 10 . 20 14 30 5 . 22 18 . . . . 135 Peak Tracking Total 12 | . 4 3 4 4 9 4 5 5 3 2 3 6 . 5 . 4 4 7 5 1 6 4 . 4 7 8 2 . 9 5 1 . . . 12 Tactical Retreats 29 | . 1 1 . 1 5 . 1 1 . . . 1 . . . . . 2 . . 1 1 . 2 2 1 . . 1 . . . . . 8 Traps | -11 -10 -10 -9 -9 -9 -8 -8 -8 -8 -7 -7 -7 -7 -7 -7 -6 -6 -6 -6 -6 -6 -5 -5 -5 -5 -4 -4 -4 -4 -4 -4 -4 -4 -3 -3 ------- Run | Scr Mat Min Mat Min Exi Min Mat Gar Mat Fac Was Fac Low Low Dat Pro Fac Ext Cet Arc Hub Fac Was Fac Gar Fac Was Fac Gar Fac Upp Upp Zhi Pro Res Traps Triggered 30 | . 2 1 . . . . 1 3 . 3 . 4 . . . . . 5 . . . 1 . . 4 4 . . . . . . . . 2 Indirectly 3 | . . . . . . . . . . . . . . . . . . . . . . . . . . 3 . . . . . . . . . Trap Hack Attempts . | . . . . . . . . . . . . . . . . . . . . . . . . . . . . . . . . . . . . Triggered . | . . . . . . . . . . . . . . . . . . . . . . . . . . . . . . . . . . . . Disarmed 4 | . . . . . . . . . . . . . . . . . . . . . . . . 4 . . . . . . . . . . . Reprogrammed . | . . . . . . . . . . . . . . . . . . . . . . . . . . . . . . . . . . . . Reused 1 | . . . . . . . . . . . . . . . 1 . . . . . . . . . . . . . . . . . . . . Traps Extracted . | . . . . . . . . . . . . . . . . . . . . . . . . . . . . . . . . . . . . Installed 5 | . . . . . . . . . . . . . . . 5 . . . . . . . . . . . . . . . . . . . . Triggered 3 | . . . . . . . . . . . . . 2 . . . . . . . . . . 1 . . . . . . . . . . . Exploded 3 | . . . . . 3 . . . . . . . . . . . . . . . . . . . . . . . . . . . . . . Machines | -11 -10 -10 -9 -9 -9 -8 -8 -8 -8 -7 -7 -7 -7 -7 -7 -6 -6 -6 -6 -6 -6 -5 -5 -5 -5 -4 -4 -4 -4 -4 -4 -4 -4 -3 -3 ---------- Run | Scr Mat Min Mat Min Exi Min Mat Gar Mat Fac Was Fac Low Low Dat Pro Fac Ext Cet Arc Hub Fac Was Fac Gar Fac Was Fac Gar Fac Upp Upp Zhi Pro Res Machines Disabled 79 | . 1 . . . 13 2 3 2 1 . . 4 . 1 . . 6 6 3 2 9 8 . 6 1 4 . . 4 . . . . . 3 Max in Single Turn 9 | . 1 . . . 1 2 1 1 1 . . 2 . 1 . . 2 1 2 1 9 4 . 3 1 2 . . 1 . . . . . 1 Garrison Access 6 | . . . . . . . . . . 1 . 2 . . . . 1 . . . . . . . . . . . . . . . . . 2 Garrison Relay 5 | . . . . . . . . 1 . . . . . . . . . . . . . . . . 1 . . . 3 . . . . . . Network Hub 1 | . . . . . . . . . . . . . . . . . . . . . 1 . . . . . . . . . . . . . . Machines Sabotaged . | . . . . . . . . . . . . . . . . . . . . . . . . . . . . . . . . . . . . Garrisons Compromised . | . . . . . . . . . . . . . . . . . . . . . . . . . . . . . . . . . . . . Overloaded Fab Kills . | . . . . . . . . . . . . . . . . . . . . . . . . . . . . . . . . . . . . Fab Network Shutdowns . | . . . . . . . . . . . . . . . . . . . . . . . . . . . . . . . . . . . . Hacking | -11 -10 -10 -9 -9 -9 -8 -8 -8 -8 -7 -7 -7 -7 -7 -7 -6 -6 -6 -6 -6 -6 -5 -5 -5 -5 -4 -4 -4 -4 -4 -4 -4 -4 -3 -3 --------- Run | Scr Mat Min Mat Min Exi Min Mat Gar Mat Fac Was Fac Low Low Dat Pro Fac Ext Cet Arc Hub Fac Was Fac Gar Fac Was Fac Gar Fac Upp Upp Zhi Pro Res Machines Accessed 73 | . . 1 2 . 2 1 6 . . 9 . 10 . . 3 . 2 8 3 1 2 1 . 6 . . . 1 . 4 . 1 5 . 5 Terminals 48 | . . . 2 . . 1 5 . . 6 . 6 . . . . 1 8 3 . 2 1 . 5 . . . . . 4 . . . . 4 Fabricators 1 | . . . . . . . . . . . . 1 . . . . . . . . . . . . . . . . . . . . . . . Repair Stations . | . . . . . . . . . . . . . . . . . . . . . . . . . . . . . . . . . . . . Recycling Units 1 | . . . . . . . . . . . . 1 . . . . . . . . . . . . . . . . . . . . . . . Scanalyzers 1 | . . . . . . . . . . 1 . . . . . . . . . . . . . . . . . . . . . . . . . Garrison Access 9 | . . . . . . . 1 . . 2 . 2 . . . . 1 . . . . . . 1 . . . 1 . . . . . . 1 Total Hacks 174 | . . 1 7 . 2 5 14 . . 20 . 14 . . 23 . 2 14 7 1 6 1 . 13 . . . 1 . 12 . 1 14 . 16 Successful 96 | . . 1 2 . 2 2 4 . . 10 . 4 . . 23 . 1 7 3 1 3 . . 6 . . . 1 . 4 . 1 14 . 7 Failed 78 | . . . 5 . . 3 10 . . 10 . 10 . . . . 1 7 4 . 3 1 . 7 . . . . . 8 . . . . 9 Catastrophic 21 | . . . . . . 1 3 . . 2 . 5 . . . . 1 2 . . . . . 1 . . . . . 1 . . . . 5 Database Lockouts . | . . . . . . . . . . . . . . . . . . . . . . . . . . . . . . . . . . . . Manual 75 | . . . 5 . 1 5 10 . . 13 . 7 . . . . 1 2 . . 4 1 . 6 . . . . . 10 . . . . 10 Terminals 116 | . . . 7 . . 5 13 . . 14 . 9 . . . . 1 14 7 . 6 1 . 12 . . . . . 12 . . . . 15 Fabricators 2 | . . . . . . . . . . . . 2 . . . . . . . . . . . . . . . . . . . . . . . Repair Stations . | . . . . . . . . . . . . . . . . . . . . . . . . . . . . . . . . . . . . Recycling Units 1 | . . . . . . . . . . . . 1 . . . . . . . . . . . . . . . . . . . . . . . Scanalyzers 3 | . . . . . . . . . . 3 . . . . . . . . . . . . . . . . . . . . . . . . . Garrison Access 10 | . . . . . . . 1 . . 3 . 2 . . . . 1 . . . . . . 1 . . . 1 . . . . . . 1 Terminal Hacks 73 | . . 1 1 . 2 2 3 . . 1 . 1 . . 23 . . 7 3 1 2 . . 5 . . . . . 1 . 1 14 . 5 Record 22 | . . . . . 1 . . . . . . . . . 6 . . . 3 1 . . . 1 . . . . . . . . 6 . 4 Part Schematic 11 | . . . . . . . . . . . . . . . 7 . . . . . . . . . . . . . . . . . 4 . . Robot Schematic 7 | . . . . . . . . . . . . . . . 7 . . . . . . . . . . . . . . . . . . . . Robot Analysis 2 | . . . . . . 2 . . . . . . . . . . . . . . . . . . . . . . . . . . . . . Prototype ID Bank 7 | . . . . . . . . . . . . . . . 3 . . . . . . . . . . . . . . . . . 4 . . Open Door 8 | . . 1 . . . . . . . . . . . . . . . 6 . . . . . . . . . . . . . 1 . . . Level Access Points 1 | . . . . . . . . . . . . . . . . . . . . . 1 . . . . . . . . . . . . . . Branch Access Points 3 | . . . . . . . . . . . . 1 . . . . . . . . . . . . . . . . . 1 . . . . 1 Unreport Threat 5 | . . . . . . . 1 . . . . . . . . . . 1 . . 1 . . 2 . . . . . . . . . . . Disarm Traps 2 | . . . . . . . . . . . . . . . . . . . . . . . . 2 . . . . . . . . . . . Zone Layout 4 | . . . 1 . . . 2 . . 1 . . . . . . . . . . . . . . . . . . . . . . . . . EX-Prototype ID Bank 1 | . . . . . 1 . . . . . . . . . . . . . . . . . . . . . . . . . . . . . . Fabricator Hacks . | . . . . . . . . . . . . . . . . . . . . . . . . . . . . . . . . . . . . Repair Station Hacks . | . . . . . . . . . . . . . . . . . . . . . . . . . . . . . . . . . . . . Recycling Unit Hacks 1 | . . . . . . . . . . . . 1 . . . . . . . . . . . . . . . . . . . . . . . Retrieve Components 1 | . . . . . . . . . . . . 1 . . . . . . . . . . . . . . . . . . . . . . . Scanalyzer 2 | . . . . . . . . . . 2 . . . . . . . . . . . . . . . . . . . . . . . . . Insert Component 1 | . . . . . . . . . . 1 . . . . . . . . . . . . . . . . . . . . . . . . . Analyze 1 | . . . . . . . . . . 1 . . . . . . . . . . . . . . . . . . . . . . . . . Garrison Access Hacks 8 | . . . . . . . 1 . . 1 . 2 . . . . 1 . . . . . . 1 . . . 1 . . . . . . 1 Unlock Access 3 | . . . . . . . 1 . . . . . . . . . . . . . . . . 1 . . . 1 . . . . . . . Seal Access 5 | . . . . . . . . . . 1 . 2 . . . . 1 . . . . . . . . . . . . . . . . . 1 Unauthorized Hacks 12 | . . . 1 . . . . . . 6 . . . . . . . . . . 1 . . . . . . . . 3 . . . . 1 Terminals 11 | . . . 1 . . . . . . 5 . . . . . . . . . . 1 . . . . . . . . 3 . . . . 1 Track 8 | . . . 1 . . . . . . 4 . . . . . . . . . . 1 . . . . . . . . 1 . . . . 1 Botnet 3 | . . . . . . . . . . 1 . . . . . . . . . . . . . . . . . . . 2 . . . . . Fabricators . | . . . . . . . . . . . . . . . . . . . . . . . . . . . . . . . . . . . . Repair Stations . | . . . . . . . . . . . . . . . . . . . . . . . . . . . . . . . . . . . . Recycling Units . | . . . . . . . . . . . . . . . . . . . . . . . . . . . . . . . . . . . . Scanalyzers . | . . . . . . . . . . . . . . . . . . . . . . . . . . . . . . . . . . . . Garrison Access 1 | . . . . . . . . . . 1 . . . . . . . . . . . . . . . . . . . . . . . . . Restock 1 | . . . . . . . . . . 1 . . . . . . . . . . . . . . . . . . . . . . . . . Data Cores Recovered 3 | . . . 1 . . . . . . . . . . . . . . . . . . . . 1 . . . . . 1 . . . . . Used 3 | . . . 1 . . . . . . . . . . . . . . . . . . . . 1 . . . . . 1 . . . . . Hacking Detections 44 | . . . 2 . . 1 5 . . 8 . 7 . . . . 1 5 2 . 2 . . 3 . . . . . 4 . . . . 4 Full Trace Events 7 | . . . . . . . 1 . . . . 2 . . . . . 2 1 . . . . . . . . . . 1 . . . . . Feedback Events 1 | . . . . . . . . . . . . . . . . . . 1 . . . . . . . . . . . . . . . . . Corruption 1 | . . . . . . . . . . . . . . . . . . 1 . . . . . . . . . . . . . . . . . Feedback Blocked . | . . . . . . . . . . . . . . . . . . . . . . . . . . . . . . . . . . . . Robot Schematics Acquired 7 | . . . . . . . . . . . . . . . 7 . . . . . . . . . . . . . . . . . . . . Robots Built . | . . . . . . . . . . . . . . . . . . . . . . . . . . . . . . . . . . . . Matter . | . . . . . . . . . . . . . . . . . . . . . . . . . . . . . . . . . . . . Time . | . . . . . . . . . . . . . . . . . . . . . . . . . . . . . . . . . . . . Total Robot Build Rating . | . . . . . . . . . . . . . . . . . . . . . . . . . . . . . . . . . . . . Part Schematics Acquired 12 | . . . . . . . . . . 1 . . . . 7 . . . . . . . . . . . . . . . . . 4 . . Parts Built . | . . . . . . . . . . . . . . . . . . . . . . . . . . . . . . . . . . . . Matter . | . . . . . . . . . . . . . . . . . . . . . . . . . . . . . . . . . . . . Time . | . . . . . . . . . . . . . . . . . . . . . . . . . . . . . . . . . . . . Total Part Build Rating . | . . . . . . . . . . . . . . . . . . . . . . . . . . . . . . . . . . . . Parts Repaired . | . . . . . . . . . . . . . . . . . . . . . . . . . . . . . . . . . . . . Time . | . . . . . . . . . . . . . . . . . . . . . . . . . . . . . . . . . . . . Parts Recycled . | . . . . . . . . . . . . . . . . . . . . . . . . . . . . . . . . . . . . Recycled Matter . | . . . . . . . . . . . . . . . . . . . . . . . . . . . . . . . . . . . . Retrieved Matter . | . . . . . . . . . . . . . . . . . . . . . . . . . . . . . . . . . . . . Retrieved Components 10 | . . . . . . . . . . . . 10 . . . . . . . . . . . . . . . . . . . . . . . Parts Scanalyzed 1 | . . . . . . . . . . 1 . . . . . . . . . . . . . . . . . . . . . . . . . Part Schematics Acquired 1 | . . . . . . . . . . 1 . . . . . . . . . . . . . . . . . . . . . . . . . Parts Damaged . | . . . . . . . . . . . . . . . . . . . . . . . . . . . . . . . . . . . . Bothacking | -11 -10 -10 -9 -9 -9 -8 -8 -8 -8 -7 -7 -7 -7 -7 -7 -6 -6 -6 -6 -6 -6 -5 -5 -5 -5 -4 -4 -4 -4 -4 -4 -4 -4 -3 -3 ------------ Run | Scr Mat Min Mat Min Exi Min Mat Gar Mat Fac Was Fac Low Low Dat Pro Fac Ext Cet Arc Hub Fac Was Fac Gar Fac Was Fac Gar Fac Upp Upp Zhi Pro Res Used RIF Installer 3 | . . . . . . . . 1 . . . . . . . . . . . . . . . . 1 . . . 1 . . . . . . Threat Obfuscator 1 | . . . . . . . . . . . . . . . . . . . . . . . . . 1 . . . . . . . . . . Watcher Feeds 1 | . . . . . . . . . . . . . . . . . . . . . . . . . . . . . 1 . . . . . . Robots Hacked 24 | . . . . . . . . . . 2 5 . . . . . 2 2 1 . . 1 . . . 1 4 . 2 . . . . . 4 Non-combat 7 | . . . . . . . . . . 2 . . . . . . 2 . . . . 1 . . . 1 . . . . . . . . 1 Combat 16 | . . . . . . . . . . . 5 . . . . . . 1 1 . . . . . . . 4 . 2 . . . . . 3 Robot Hacks Applied 28 | . . . . . . . . . . 2 7 . . . . . 3 1 1 . . 1 . . . 1 6 . 2 . . . . . 4 parse_system 4 | . . . . . . . . . . . 2 . . . . . . 1 1 . . . . . . . . . . . . . . . . no_distress 1 | . . . . . . . . . . . . . . . . . 1 . . . . . . . . . . . . . . . . . . find_chute 4 | . . . . . . . . . . 1 . . . . . . 1 . . . . 1 . . . 1 . . . . . . . . . find_recycling 1 | . . . . . . . . . . 1 . . . . . . . . . . . . . . . . . . . . . . . . . ignore_parts 1 | . . . . . . . . . . . . . . . . . . . . . . . . . . . . . . . . . . . 1 map_route 1 | . . . . . . . . . . . . . . . . . 1 . . . . . . . . . . . . . . . . . . ignore_targets 11 | . . . . . . . . . . . 5 . . . . . . . . . . . . . . . 6 . . . . . . . . formatsys_high 5 | . . . . . . . . . . . . . . . . . . . . . . . . . . . . . 2 . . . . . 3 Manual 1 | . . . . . . . . . . . . . . . . . . 1 . . . . . . . . . . . . . . . . . Relay Couplers Released 26 | . . . . . . . . 4 . 3 . . . . . . . . . . . . . . 4 . . . 13 . . . . . 2 Machine Destruction 23 | . . . . . . . . 4 . . . . . . . . . . . . . . . . 4 . . . 13 . . . . . 2 Programmers 3 | . . . . . . . . . . 3 . . . . . . . . . . . . . . . . . . . . . . . . . Attached 7 | . . . . . . . . . . . 1 . . . . . 1 . . . . . . . 1 . 1 . 1 . . . . . 2 Robots Rewired 11 | . . . . . . . . . . . . . . 1 . . . 10 . . . . . . . . . . . . . . . . . Allies Hacked . | . . . . . . . . . . . . . . . . . . . . . . . . . . . . . . . . . . . . Hacks Repelled . | . . . . . . . . . . . . . . . . . . . . . . . . . . . . . . . . . . . . Allies | -11 -10 -10 -9 -9 -9 -8 -8 -8 -8 -7 -7 -7 -7 -7 -7 -6 -6 -6 -6 -6 -6 -5 -5 -5 -5 -4 -4 -4 -4 -4 -4 -4 -4 -3 -3 -------- Run | Scr Mat Min Mat Min Exi Min Mat Gar Mat Fac Was Fac Low Low Dat Pro Fac Ext Cet Arc Hub Fac Was Fac Gar Fac Was Fac Gar Fac Upp Upp Zhi Pro Res Total Allies 67 | . . . . 1 . . . . . . . . . 1 . . . 21 . . . . 20 . . . 19 . 2 . . . . . 3 Largest Group 20 | . . . . 1 1 . . . . . . . . 1 . . . 8 1 . . . 20 18 . . 19 6 6 2 . . . . 2 Highest-Rated Group 793 | . . . . 31 31 . . . . . . . . 30 . . . 374 32 . . . 793 693 . . 696 242 242 94 . . . . 100 Highest-Rated Ally 156 | . . . . 31 31 . . . . . . . . 30 . . . 156 32 . . . 50 46 . . 50 46 47 47 . . . . 64 Total Orders . | . . . . . . . . . . . . . . . . . . . . . . . . . . . . . . . . . . . . Ally Attacks 594 | . . . . 5 . . . . . . . . . 2 . . . 277 4 . . . . 167 . . 100 . 10 18 . . . . 11 Total Damage 14377 | . . . . 108 . . . . . . . . . 77 . . . 5756 96 . . . . 3271 . . 4003 . 275 492 . . . . 299 Kills 96 | . . . . 3 . . . . . . . . . . . . . 48 3 . . . . 26 . . 9 . 1 5 . . . . 1 Allies Corrupted 2 | . . . . . . . . . . . . . . . . . . . . . . . . 2 . . . . . . . . . . . Allies Melted . | . . . . . . . . . . . . . . . . . . . . . . . . . . . . . . . . . . . . Intel | -11 -10 -10 -9 -9 -9 -8 -8 -8 -8 -7 -7 -7 -7 -7 -7 -6 -6 -6 -6 -6 -6 -5 -5 -5 -5 -4 -4 -4 -4 -4 -4 -4 -4 -3 -3 ------- Run | Scr Mat Min Mat Min Exi Min Mat Gar Mat Fac Was Fac Low Low Dat Pro Fac Ext Cet Arc Hub Fac Was Fac Gar Fac Was Fac Gar Fac Upp Upp Zhi Pro Res Robot Analysis Total 117 | . . . . . . 2 . . . . . . . . 115 . . . . . . . . . . . . . . . . . . . . Derelict Logs Recovered 8 | . . 1 . 2 . . . . . . . . 1 1 . 1 . . . . . . . . . . . . . . 1 1 . . . Drone Launches . | . . . . . . . . . . . . . . . . . . . . . . . . . . . . . . . . . . . . Drone Recoveries . | . . . . . . . . . . . . . . . . . . . . . . . . . . . . . . . . . . . . Exploration | -11 -10 -10 -9 -9 -9 -8 -8 -8 -8 -7 -7 -7 -7 -7 -7 -6 -6 -6 -6 -6 -6 -5 -5 -5 -5 -4 -4 -4 -4 -4 -4 -4 -4 -3 -3 ------------- Run | Scr Mat Min Mat Min Exi Min Mat Gar Mat Fac Was Fac Low Low Dat Pro Fac Ext Cet Arc Hub Fac Was Fac Gar Fac Was Fac Gar Fac Upp Upp Zhi Pro Res Turns Passed 35164 | 75 1063 684 968 419 3734 303 2374 871 351 2179 234 4503 576 783 260 781 933 1083 710 186 601 722 706 1253 611 938 834 126 899 801 569 384 356 508 2786 Spaces Moved 16322 | 45 502 344 469 202 1571 185 883 408 143 1141 108 2500 373 433 160 473 388 499 296 84 215 292 329 586 242 305 397 70 436 370 302 206 187 277 901 Core 42 | 23 . . . . 15 . . . . . . . . . . . 1 . . . . . . . . . . . . . . . . . 3 Treads 9989 | 22 502 344 469 202 765 . 775 408 143 109 . 183 . . . . 243 499 296 84 215 292 329 586 242 305 397 70 436 370 302 206 187 277 731 Legs 1248 | . . . . . 791 185 108 . . . . . . . . . . . . . . . . . . . . . . . . . . . 164 Wheels 5040 | . . . . . . . . . . 1032 108 2317 373 433 160 473 144 . . . . . . . . . . . . . . . . . . Hover 3 | . . . . . . . . . . . . . . . . . . . . . . . . . . . . . . . . . . . 3 Flight . | . . . . . . . . . . . . . . . . . . . . . . . . . . . . . . . . . . . . Fastest Speed 50 | 50 160 165 185 185 150 150 150 200 200 140 140 130 130 140 150 150 150 180 180 180 180 180 200 180 180 160 152 172 172 152 180 180 180 180 150 Average Speed 174 | 140 173 184 185 185 206 150 194 200 204 153 158 146 132 141 152 150 183 180 180 180 180 182 200 191 180 176 162 172 172 169 180 180 180 180 192 Slowest Speed 2800 | 200 200 185 185 185 2750 150 260 200 205 190 170 260 140 160 160 160 2750 180 180 180 180 200 200 200 180 180 180 172 172 180 180 180 180 180 2800 Overloaded Moves . | . . . . . . . . . . . . . . . . . . . . . . . . . . . . . . . . . . . . Propulsion Burnouts . | . . . . . . . . . . . . . . . . . . . . . . . . . . . . . . . . . . . . Robots Hopped . | . . . . . . . . . . . . . . . . . . . . . . . . . . . . . . . . . . . . Cave-ins Triggered . | . . . . . . . . . . . . . . . . . . . . . . . . . . . . . . . . . . . . Exploration Rate (%) 50 | 4 88 57 45 47 91 70 80 75 18 24 76 55 51 62 77 67 15 68 70 76 20 10 95 19 40 14 93 3 63 10 51 45 60 48 25 Regions Visited 35 Branch Regions 16 Pre-discovered Areas 33 | . . . . 1 1 . . . . . . . . . 26 . . . . . . . . . . . . . . . 1 1 3 . . Known Exits Taken 14 | . . . 1 . . . 1 . 1 . . 1 1 . . 1 . . . . 1 . . 1 . . . 1 . 1 1 1 1 1 . Unknown Exits Taken 12 | 1 1 1 . 1 1 1 . . . . . . . 1 1 . 1 1 1 1 . . . . . . . . . . . . . . . Scrap Searched 8 | . . 1 . . . . . . . . . . 1 2 . . . . . . . . . . . . . . . . 2 . . 2 . Spaces Dug 252 | . 30 8 . . 1 21 22 . . 1 . 44 1 19 . 11 13 . . . 8 6 . 9 4 14 . 1 . 11 8 . . 5 15 Terrain Destroyed 1476 | . 67 37 28 114 19 98 69 76 13 1 . 183 1 99 . 79 74 30 17 11 195 46 . 65 8 62 5 1 7 12 9 1 . 6 43 Melee 53 | . . . . . 1 . . . . 1 . 27 1 1 . 4 13 . . . . . . . . . . . . . . . . . 5 Projectile 196 | . . . . . 6 . . . . . . . . 1 . . . 3 5 11 28 19 . 22 4 21 5 1 7 12 9 1 . 6 35 AOE 1227 | . 67 37 28 114 12 98 69 76 13 . . 156 . 97 . 75 61 27 12 . 167 27 . 43 4 41 . . . . . . . . 3 Terrain Rammed . | . . . . . . . . . . . . . . . . . . . . . . . . . . . . . . . . . . . . Walls Destroyed . | . . . . . . . . . . . . . . . . . . . . . . . . . . . . . . . . . . . . Machines Disabled . | . . . . . . . . . . . . . . . . . . . . . . . . . . . . . . . . . . . . Actions | -11 -10 -10 -9 -9 -9 -8 -8 -8 -8 -7 -7 -7 -7 -7 -7 -6 -6 -6 -6 -6 -6 -5 -5 -5 -5 -4 -4 -4 -4 -4 -4 -4 -4 -3 -3 --------- Run | Scr Mat Min Mat Min Exi Min Mat Gar Mat Fac Was Fac Low Low Dat Pro Fac Ext Cet Arc Hub Fac Was Fac Gar Fac Was Fac Gar Fac Upp Upp Zhi Pro Res Total 20574 | 54 620 376 525 226 1867 199 1292 441 172 1507 150 3101 449 545 178 512 525 620 401 98 357 423 367 659 343 514 514 73 522 478 319 219 211 282 1435 Wait 1356 | . 38 . 12 . 47 3 181 . . 259 . 277 61 2 . 6 34 34 20 1 76 66 5 2 25 42 5 . 13 39 . 13 . . 95 Move 16292 | 44 501 343 468 201 1570 184 883 406 142 1141 107 2499 372 432 159 472 387 498 295 83 214 292 328 586 241 305 396 70 435 369 301 205 186 276 901 Hop . | . . . . . . . . . . . . . . . . . . . . . . . . . . . . . . . . . . . . Pick Up 261 | 4 11 6 6 2 31 . 13 3 2 20 6 19 9 15 3 . 4 2 12 1 10 5 4 8 5 9 9 . 10 5 1 . 7 1 18 Fast Attach 106 | 6 6 1 2 . 13 . 8 . . 5 . 8 . 1 . . 1 1 1 1 . . 2 1 2 6 3 . 1 3 1 . 4 . 29 Attach 174 | . 1 . 1 . 13 . 12 2 . 5 . 18 1 4 . . 6 3 4 . 2 7 3 6 5 20 1 . 8 3 2 . 3 . 44 Detach 67 | . 3 . . . 10 . 6 . . 4 . 4 1 1 . . 1 1 2 . 1 3 1 . 1 6 3 . 1 1 2 . 1 . 14 Swap 280 | . 10 6 8 1 9 1 25 1 5 18 5 49 1 17 2 4 14 13 14 2 5 9 2 8 2 6 3 2 4 7 . . . . 27 Drop 235 | . 8 8 4 2 26 . 21 1 5 13 5 11 . 15 8 . . . 15 1 10 5 8 9 7 1 11 . 3 7 2 . 10 . 19 Fire 1491 | . 42 12 24 20 135 10 143 22 18 24 27 82 . 37 . 23 55 52 35 9 39 36 14 39 47 118 83 1 45 44 10 1 . 5 239 Melee 256 | . . . . . 12 1 . . . 18 . 118 4 21 1 7 23 6 3 . . . . . . . . . . . . . . . 42 Ram 1 | . . . . . . . . . . . . . . . . . . . . . . . . . . . . . . . . . . . 1 Kick 1 | . . . . . . . . . . . . . . . . . . . . . . . . . . . . . . . . . . . 1 Crush 7 | . . . . . 1 . . . . . . . . . . . . . . . . . . . . 1 . . . . . . . . 5 Escape Stasis 40 | . . . . . . . . 6 . . . 16 . . . . . 10 . . . . . . 8 . . . . . . . . . . Rewire 2 | . . . . . . . . . . . . . . . . . . . . . . . . . . . . . 2 . . . . . . Trap 5 | . . . . . . . . . . . . . . . 5 . . . . . . . . . . . . . . . . . . . . Miscellaneous . | . . . . . . . . . . . . . . . . . . . . . . . . . . . . . . . . . . . . Route ------- -11/Scrapyard -10/Materials (discovered 3 exits: *Mat x2 / *Min) -10/Mines -9/Materials (discovered 2 exits: *Mat / *Min) -9/Mines -9/Exiles -8/Mines -8/Materials (discovered 4 exits: *Fac x3 / Gar) -8/Garrison (discovered 3 exits: [*Mat x3]) -8/Materials -7/Factory -7/Waste -7/Factory (discovered 4 exits: *Fac x2 / *Low x2) -7/Lower Caves -7/Lower Caves (discovered 2 exits: *Fac / *Dat) -7/Data Miner -6/Proximity Caves -6/Factory (discovered 3 exits: *Fac x2 / *Ext) -6/Extension (discovered 2 exits: *Fac / *Cet) -6/Cetus (discovered 2 exits: *Fac / *Arc) -6/Archives (discovered 3 exits: *Fac / *Hub x2) -6/Hub_04(d) (discovered 4 exits: *Fac x4) -5/Factory -5/Waste -5/Factory (discovered 2 exits: [*Fac] / Gar) -5/Garrison -4/Factory -4/Waste -4/Factory -4/Garrison (discovered 2 exits: *Fac x2) -4/Factory (discovered 2 exits: *Upp x2) -4/Upper Caves -4/Upper Caves -4/Zhirov -3/Proximity Caves -3/Research (discovered 3 exits: Arm / Qua x2) History --------- Turn | Location | Event 2 | -11/Scrapyard | Met Revision 17 5 | -11/Scrapyard | Discovered new exit (range 16) 76 | -11/Scrapyard | Entered Materials 316 | -10/Materials | Build established: Mutant 563 | -10/Materials | Discovered new exit (range 15) 723 | -10/Materials | Discovered new exit (range 16) 913 | -10/Materials | Discovered new exit (range 10) 919 | -10/Materials | Core integrity fell below 50% 1139 | -10/Materials | Entered Mines 1214 | -10/Mines | Met a Derelict who couldn't figure out how to use a Trap Extractor 1277 | -10/Mines | Found a damaged Exp. Sensor Array with a note attached 1281 | -10/Mines | Found Prototype Device 1321 | -10/Mines | Learned 4 Materials zone layouts 1352 | -10/Mines | Joined a pair of Derelicts in attacking an 0b10 outpost 1803 | -10/Mines | Discovered new exit (range 12) 1823 | -10/Mines | Entered Materials 1823 | -9/Materials | Evolved 2 slots: Utility x2 1824 | -9/Materials | Identified exit to Mines 2257 | -9/Materials | Build established: Scavenger-Mutant 2307 | -9/Materials | Discovered new exit (range 16) 2791 | -9/Materials | Entered Mines 2825 | -9/Mines | Excavation squad dispatched 2825 | -9/Mines | A large section of the Mines collapsed 2990 | -9/Mines | Destroyed 11 combat bots 3004 | -9/Mines | Learned location of Storage (-8) 3009 | -9/Mines | Received a Rocket Launcher from a helpful Derelict 3075 | -9/Mines | Excavation squad dispatched 3085 | -9/Mines | Received a Mining Laser from a helpful Derelict 3201 | -9/Mines | Deemed a non-threat by the Exiles lab entrance 3202 | -9/Mines | Discovered new exit (range 5) 3210 | -9/Mines | Entered Exiles 3210 | -9/Exiles | Accompanied by 1 ally 3255 | -9/Exiles | Met 8R-AWN 3286 | -9/Exiles | Met EX-HEX 3434 | -9/Exiles | Met EX-DEC 3473 | -9/Exiles | Learned location of Zion (-6) 3611 | -9/Exiles | Met EX-BIN 3641 | -9/Exiles | Build established: Hauler-Mutant 3645 | -9/Exiles | Aligned with FarCom system 3648 | -9/Exiles | Given EX-Vault access code 3697 | -9/Exiles | Opened EX-Vault 3713 | -9/Exiles | Found Lightpack 2.0 3724 | -9/Exiles | Found AWS/Autocannon 3733 | -9/Exiles | Found Latent Energy Streamer 3777 | -9/Exiles | Warned to stay clear of 0b10 Research branches 3912 | -9/Exiles | Discovered new exit (range 12) 4720 | -9/Exiles | Attacked by the Exiles 4907 | -9/Exiles | Lost 5 parts (1p1n3u) 5030 | -9/Exiles | Core integrity fell below 50% 5056 | -9/Exiles | Lost 7 parts (1p1n1u4w) 5095 | -9/Exiles | Destroyed 8R-AWN 5524 | -9/Exiles | Found Prototype Ballistic Gun 5524 | -9/Exiles | Identified 8R-AWN's Boregun 5528 | -9/Exiles | Found 8R-AWN's Boregun 5538 | -9/Exiles | Found Prototype Processor 5979 | -9/Exiles | Destroyed EX-BIN 6018 | -9/Exiles | Destroyed EX-HEX 6036 | -9/Exiles | Destroyed EX-DEC 6105 | -9/Exiles | Found Deploy-a-Sentry 6149 | -9/Exiles | Found Prototype Device 6149 | -9/Exiles | Identified System Purifier 6944 | -9/Exiles | Stole four prototypes: Lightpack 2.0, Latent Energy Streamer, AWS/Autocannon, Deploy-a-Sentry 6944 | -9/Exiles | Entered Mines 7236 | -8/Mines | Discovered new exit (range 7) 7247 | -8/Mines | Entered Materials 7247 | -8/Materials | Evolved 2 slots: Utility x2 7247 | -8/Materials | Identified Exp. Sensor Array 7248 | -8/Materials | Identified exit to Factory 7913 | -8/Materials | Build established: Scavenger-Mutant 7965 | -8/Materials | Lost 3 parts (1p1n1w) 8086 | -8/Materials | Discovered exit to Factory (range 16) 8236 | -8/Materials | Core integrity fell below 50% 8469 | -8/Materials | Discovered exit to Factory (range 8) 8522 | -8/Materials | Build established: Hauler-Mutant 9621 | -8/Materials | Identified exit to Garrison 9621 | -8/Materials | Entered Garrison 9673 | -8/Garrison | Triggered checkpoint 9725 | -8/Garrison | Destroyed 12 combat bots 9779 | -8/Garrison | Discovered new exit (range 13) 9967 | -8/Garrison | Discovered new exit (range 15) 10087 | -8/Garrison | Triggered checkpoint 10180 | -8/Garrison | Discovered new exit (range 9) 10206 | -8/Garrison | Installed Relay Interface Framework 10274 | -8/Garrison | Triggered checkpoint 10324 | -8/Garrison | Garrison Relay disabled 10492 | -8/Garrison | Entered Materials 10705 | -8/Materials | Core integrity fell below 20% 10837 | -8/Materials | Discovered exit to Factory (range 3) 10843 | -8/Materials | Entered Factory 10843 | -7/Factory | Evolved 2 slots: Propulsion x1, Utility x1 11583 | -7/Factory | Discovered new exit (range 13) 13022 | -7/Factory | Sucked down chute 13022 | -7/Factory | Entered Waste 13037 | -7/Waste | EMP discharged 13061 | -7/Waste | Spotted C-40 Crusher 13080 | -7/Waste | Destroyed C-40 Crusher 13099 | -7/Waste | Spotted C-40 Crusher 13103 | -7/Waste | Destroyed C-40 Crusher 13108 | -7/Waste | Found Damper Plating 13109 | -7/Waste | Spotted C-40 Crusher 13117 | -7/Waste | Spotted C-40 Crusher 13135 | -7/Waste | Spotted C-40 Crusher 13137 | -7/Waste | EMP discharged 13137 | -7/Waste | System corruption reached 10% 13137 | -7/Waste | Spotted C-40 Crusher 13222 | -7/Waste | Destroyed C-40 Crusher 13228 | -7/Waste | Discovered new exit (range 11) 13236 | -7/Waste | Found Damper Plating 13237 | -7/Waste | EMP discharged 13256 | -7/Waste | Entered Factory 14090 | -7/Factory | Discovered new exit (range 6) 14514 | -7/Factory | Lost 5 parts (3n1u1w) 14807 | -7/Factory | Lost 4 parts (1p1u2w) 16038 | -7/Factory | Garrison activated, responded to threat 16496 | -7/Factory | First assault squad dispatched 16723 | -7/Factory | Core integrity fell below 50% 16908 | -7/Factory | Discovered new exit (range 16) 17098 | -7/Factory | Identified exit to Factory 17650 | -7/Factory | Identified exit to Lower Caves 17759 | -7/Factory | Entered Lower Caves 17762 | -7/Lower Caves | Identified exit to Lower Caves 18335 | -7/Lower Caves | Entered another Lower Caves area 18342 | -7/Lower Caves | Attracted the attention of an 0b10 outpost 18420 | -7/Lower Caves | Destroyed 9 combat bots 18437 | -7/Lower Caves | Discovered exit to Factory (range 5) 18576 | -7/Lower Caves | Attracted the attention of an 0b10 checkpoint 18873 | -7/Lower Caves | Learned location of 1 exit from Factory 18961 | -7/Lower Caves | Discovered new exit (range 15) 18963 | -7/Lower Caves | Spotted D2-79R(f) 18963 | -7/Lower Caves | Spotted T2-IBS(f) 18964 | -7/Lower Caves | Encountered a Master Thief 18964 | -7/Lower Caves | Encountered a Master Thief 18969 | -7/Lower Caves | Spotted F1-UBV(f) 18970 | -7/Lower Caves | Encountered a Master Thief 18970 | -7/Lower Caves | Spotted IA-308(f) 18971 | -7/Lower Caves | Encountered a Master Thief 18974 | -7/Lower Caves | Lightpack 2.0 stolen by Master Thief 18978 | -7/Lower Caves | Deploy-a-Sentry stolen by Master Thief 18991 | -7/Lower Caves | System Purifier stolen by Master Thief 19118 | -7/Lower Caves | Entered Data Miner 19118 | -7/Data Miner | Discovered new exit (range 6) 19147 | -7/Data Miner | Met Data Miner 19177 | -7/Data Miner | Learned location of Section 7 (-2) 19177 | -7/Data Miner | Acquired the access code to Warlord's prototype stash 19202 | -7/Data Miner | Received God Mode back door access code from Data Miner 19330 | -7/Data Miner | Interfaced with the Data Conduit 19378 | -7/Data Miner | Entered Proximity Caves 19439 | -6/Proximity Caves | Core integrity fell below 20% 19850 | -6/Proximity Caves | Received a Behemoth hack from an annoying Tinkerer 20159 | -6/Proximity Caves | Entered Factory 20159 | -6/Factory | Evolved 2 slots: Utility x1, Weapon x1 20160 | -6/Factory | Identified exit to Factory 20161 | -6/Factory | Loaded intel: 265 machine locations 20183 | -6/Factory | Spotted B-75 Beast 20904 | -6/Factory | Discovered exit to Factory (range 9) 21063 | -6/Factory | Discovered new exit (range 14) 21092 | -6/Factory | Entered Extension 21093 | -6/Extension | Loaded intel: 39 machine locations 21333 | -6/Extension | Rescued a captive Derelict 21334 | -6/Extension | Rescued a captive Derelict 21362 | -6/Extension | Rescued a captive Derelict 21369 | -6/Extension | Rescued a captive Derelict 21537 | -6/Extension | Rescued A7 21583 | -6/Extension | Rescued a captive Derelict 21584 | -6/Extension | Rescued a captive Derelict 21588 | -6/Extension | Spotted B-75 Beast 21603 | -6/Extension | Spotted B-75 Beast 21607 | -6/Extension | Befriended a Behemoth using the annoying Tinkerer's hack 21621 | -6/Extension | Allies destroyed B-75 Beast 21792 | -6/Extension | First assault squad dispatched 21856 | -6/Extension | Rescued a captive Derelict 21859 | -6/Extension | Rescued a captive Derelict 22012 | -6/Extension | Rescued a captive Derelict 22075 | -6/Extension | Extracted ID and sensor layout for unrecognized location from A7's data core 22137 | -6/Extension | Discovered exit to Factory (range 10) 22138 | -6/Extension | Discovered new exit (range 6) 22166 | -6/Extension | Disrupted transfer network 22175 | -6/Extension | Entered Cetus 22175 | -6/Cetus | Accompanied by 1 ally 22176 | -6/Cetus | Loaded intel: 24 machine locations 22202 | -6/Cetus | Spotted Cetus Guard 22202 | -6/Cetus | Spotted Cetus Guard 22206 | -6/Cetus | Spotted Cetus Guard 22207 | -6/Cetus | Spotted Cetus Guard 22211 | -6/Cetus | Allies destroyed Cetus Guard 22216 | -6/Cetus | Destroyed Cetus Guard 22219 | -6/Cetus | Destroyed Cetus Guard 22226 | -6/Cetus | Allies destroyed Cetus Guard 22393 | -6/Cetus | Discovered new exit (range 16) 22428 | -6/Cetus | Spotted Cetus Guard 22428 | -6/Cetus | Spotted Cetus Guard 22431 | -6/Cetus | Spotted Cetus Guard 22431 | -6/Cetus | Spotted Cetus Guard 22433 | -6/Cetus | Destroyed Cetus Guard 22442 | -6/Cetus | Destroyed Cetus Guard 22442 | -6/Cetus | Destroyed Cetus Guard 22458 | -6/Cetus | Destroyed Cetus Guard 22472 | -6/Cetus | Lost 3 parts (1p1n1u) 22472 | -6/Cetus | Discovered exit to Factory (range 15) 22481 | -6/Cetus | Met Revision 17 22733 | -6/Cetus | Build established: Scavenger-Tank 22782 | -6/Cetus | Cetus Manufacturing Module disabled 22801 | -6/Cetus | Found a strange terminal 22885 | -6/Cetus | Entered Archives 22886 | -6/Archives | Loaded intel: 8 machine locations 22966 | -6/Archives | Unable to access archive contents 22968 | -6/Archives | Discovered new exit (range 16) 22988 | -6/Archives | Unable to access archive contents 22991 | -6/Archives | Discovered new exit (range 16) 23008 | -6/Archives | Discovered exit to Factory (range 15) 23071 | -6/Archives | Entered Hub_04(d) 23072 | -6/Hub_04(d) | Loaded intel: 94 machine locations 23367 | -6/Hub_04(d) | Network Hub disabled 23428 | -6/Hub_04(d) | Spotted Lightning 23433 | -6/Hub_04(d) | Spotted Lightning 23434 | -6/Hub_04(d) | Spotted Lightning 23436 | -6/Hub_04(d) | Destroyed Lightning 23462 | -6/Hub_04(d) | Destroyed Lightning 23465 | -6/Hub_04(d) | Destroyed Lightning 23490 | -6/Hub_04(d) | Found Prototype Energy Cannon 23497 | -6/Hub_04(d) | Found Exp. Phase Shifter 23511 | -6/Hub_04(d) | Found Prototype Energy Cannon 23593 | -6/Hub_04(d) | Found EM Dispersion Field 23672 | -6/Hub_04(d) | Entered Factory 23672 | -5/Factory | Evolved 2 slots: Power x1, Utility x1 23673 | -5/Factory | Loaded intel: 265 machine locations 23687 | -5/Factory | Identified EMDS (x2) 23711 | -5/Factory | Discovered new exit (range 16) 23921 | -5/Factory | Found Exp. Signal Interpreter 24394 | -5/Factory | Sucked down chute 24394 | -5/Factory | Entered Waste 24395 | -5/Waste | Joined by Warlord forces that had cleared the area 24571 | -5/Waste | Build established: Scavenger-Mutant 24634 | -5/Waste | Discovered new exit (range 16) 25008 | -5/Waste | Found Damper Plating 25013 | -5/Waste | Found Damper Plating 25100 | -5/Waste | Entered Factory 25100 | -5/Factory | Accompanied by 18 allies 25101 | -5/Factory | Loaded intel: 271 machine locations 25931 | -5/Factory | Discovered new exit (range 11) 25959 | -5/Factory | P-70 Sage assimilated allied Z0-B5F(g) 26000 | -5/Factory | First assault squad dispatched 26353 | -5/Factory | Identified exit to Garrison 26353 | -5/Factory | Entered Garrison 26354 | -5/Garrison | Loaded intel: 19 machine locations 26362 | -5/Garrison | Expanded RIF knowledge: Threat Obfuscation 26428 | -5/Garrison | Triggered checkpoint 26490 | -5/Garrison | Garrison Relay disabled 26633 | -5/Garrison | Spotted B-75 Beast 26783 | -5/Garrison | Destroyed B-75 Beast 26949 | -5/Garrison | Discovered new exit (range 8) 26964 | -5/Garrison | Entered Factory 26964 | -4/Factory | Evolved 2 slots: Propulsion x1, Utility x1 26965 | -4/Factory | Loaded intel: 243 machine locations 27077 | -4/Factory | Found Quantum Capacitor 27281 | -4/Factory | Lost 4 parts (1p1n1u1w) 27507 | -4/Factory | System corruption reached 10% 27560 | -4/Factory | Lost 7 parts (1p5u1w) 27566 | -4/Factory | Destroyed 8 combat bots 27902 | -4/Factory | Sucked down chute 27902 | -4/Factory | Entered Waste 27982 | -4/Waste | Spotted C-40 Crusher 27984 | -4/Waste | Destroyed C-40 Crusher 28001 | -4/Waste | Spotted C-40 Crusher 28023 | -4/Waste | Destroyed C-40 Crusher 28029 | -4/Waste | Spotted C-40 Crusher 28034 | -4/Waste | Found Damper Plating 28128 | -4/Waste | Spotted C-40 Crusher 28164 | -4/Waste | Warlord forces began an assault 28256 | -4/Waste | Spotted C-40 Crusher 28261 | -4/Waste | Allies destroyed C-40 Crusher 28271 | -4/Waste | Allies destroyed C-40 Crusher 28287 | -4/Waste | Found Damper Plating 28313 | -4/Waste | Spotted C-40 Crusher 28320 | -4/Waste | Allies destroyed C-40 Crusher 28379 | -4/Waste | Allies destroyed C-40 Crusher 28508 | -4/Waste | Discovered new exit (range 13) 28594 | -4/Waste | Found Damper Plating 28620 | -4/Waste | Found Damper Plating 28731 | -4/Waste | Identified exit to Factory 28736 | -4/Waste | Entered Factory 28736 | -4/Factory | Accompanied by 6 allies 28737 | -4/Factory | Loaded intel: 273 machine locations 28862 | -4/Factory | Identified exit to Garrison 28862 | -4/Factory | Entered Garrison 28862 | -4/Garrison | Accompanied by 6 allies 28863 | -4/Garrison | Loaded intel: 19 machine locations 28912 | -4/Garrison | Triggered checkpoint 28921 | -4/Garrison | Garrison Relay disabled 28994 | -4/Garrison | Triggered checkpoint 29093 | -4/Garrison | Lost 5 parts (3u2w) 29102 | -4/Garrison | Destroyed 7 combat bots 29192 | -4/Garrison | Discovered new exit (range 13) 29264 | -4/Garrison | Triggered checkpoint 29324 | -4/Garrison | Garrison Relay disabled 29428 | -4/Garrison | Triggered checkpoint 29538 | -4/Garrison | Discovered new exit (range 9) 29550 | -4/Garrison | Identified exit to Factory 29560 | -4/Garrison | Expanded RIF knowledge: Patrol Navigation 29618 | -4/Garrison | Triggered checkpoint 29683 | -4/Garrison | Garrison Relay disabled 29761 | -4/Garrison | Entered Factory 29761 | -4/Factory | Accompanied by 2 allies 29762 | -4/Factory | Loaded intel: 240 machine locations 29857 | -4/Factory | Build established: Bothacker-Mutant 30312 | -4/Factory | Identified exit to Upper Caves 30562 | -4/Factory | Entered Upper Caves 30701 | -4/Upper Caves | Spotted B-86 Titan 31086 | -4/Upper Caves | Discovered new exit (range 11) 31129 | -4/Upper Caves | Identified exit to Upper Caves 31131 | -4/Upper Caves | Entered another Upper Caves area 31302 | -4/Upper Caves | Build established: Scavenger-Mutant 31503 | -4/Upper Caves | Discovered new exit (range 8) 31514 | -4/Upper Caves | Identified exit to Zhirov 31515 | -4/Upper Caves | Entered Zhirov 31516 | -4/Zhirov | Discovered new exit (range 3) 31549 | -4/Zhirov | Met Zhirov 31666 | -4/Zhirov | Zhirov requested help retrieving the SGEMP Prototype 31697 | -4/Zhirov | Found Alien Artifact 31718 | -4/Zhirov | Found Alien Artifact 31718 | -4/Zhirov | Identified Integrated Dissipator 31718 | -4/Zhirov | Installed Integrated Dissipator, increased core heat dissipation (+20) 31817 | -4/Zhirov | Build established: Hauler-Mutant 31869 | -4/Zhirov | Identified exit to Proximity Caves 31871 | -4/Zhirov | Entered Proximity Caves 32363 | -3/Proximity Caves | Discovered new exit (range 11) 32374 | -3/Proximity Caves | Build established: Scavenger-Mutant 32377 | -3/Proximity Caves | Identified exit to Research 32379 | -3/Proximity Caves | Entered Research 32379 | -3/Research | Evolved 2 slots: Power x1, Utility x1 32380 | -3/Research | Loaded intel: 121 machine locations 32803 | -3/Research | Identified exit to Armory 32803 | -3/Research | Identified exit to Quarantine 32837 | -3/Research | Found Enh. Force Lance 33046 | -3/Research | Intercept squad dispatched 33078 | -3/Research | Spotted Tracker 33112 | -3/Research | Spotted Tracker 33148 | -3/Research | Destroyed Tracker 33151 | -3/Research | Destroyed Tracker 33155 | -3/Research | Spotted Combat Programmer 33184 | -3/Research | Destroyed Combat Programmer 33187 | -3/Research | Spotted Combat Programmer 33209 | -3/Research | Destroyed Combat Programmer 33224 | -3/Research | Found Exp. Phase Shifter 33242 | -3/Research | Found Prototype Energy Gun 33695 | -3/Research | Destroyed 8 combat bots 33879 | -3/Research | First assault squad dispatched 34015 | -3/Research | Lost 3 parts (1p2u) 34166 | -3/Research | Intercept squad dispatched 34179 | -3/Research | Spotted Tracker 34179 | -3/Research | Spotted Tracker 34201 | -3/Research | Destroyed Tracker 34223 | -3/Research | Spotted Combat Programmer 34225 | -3/Research | Spotted Combat Programmer 34232 | -3/Research | Destroyed Tracker 34237 | -3/Research | System corruption reached 10% 34247 | -3/Research | Destroyed Combat Programmer 34302 | -3/Research | Destroyed Combat Programmer 34311 | -3/Research | Lost 3 parts (1p2u) 34664 | -3/Research | Lost 3 parts (1n2u) 34717 | -3/Research | Core integrity fell below 50% 34752 | -3/Research | Lost 4 parts (1n3w) 34841 | -3/Research | Lost 11 parts (4p1n4u2w) 35107 | -3/Research | Spotted B-86 Titan 35143 | -3/Research | Core integrity fell below 20% 35144 | -3/Research | Build established: Scavenger-Gunner 35160 | -3/Research | Intercept squad dispatched 35161 | -3/Research | Spotted Tracker 35161 | -3/Research | Spotted Tracker 35164 | -3/Research | Spotted Combat Programmer 35165 | -3/Research | System corruption reached 30% 35165 | -3/Research | Destroyed by Combat Programmer with EMDS Last Messages --------------- 35156_ Adv. Heat Sink destroyed. 35156_ Lgt. Antimatter Reactor destroyed. 35158_ K-01 Serf destroyed. 35160_ ALERT: Reliable intel has pinpointed LRC-V3, intercept squad en route. 35160_ K-01 Serf collects debris. Tracker: "THREAT CONFIRMED. DEPLOY COMBAT PROGRAMMER." 35161_ U-05 Engineer lays Concrete. 35161_ Flexi-carbon Leg destroyed. Tracker: "THREAT CONFIRMED. DEPLOY COMBAT PROGRAMMER." 35161_ Flexi-carbon Leg destroyed. 35162_ Slug penetrates Wall. 35163_ Flexi-carbon Leg destroyed. 35164_ System corrupted: Substantial component data lost. 35164_ K-01 Serf collects debris. 35164_ Adv. Core Analyzer destroyed. 35164_ System corrupted by crushing effect (+3). 35165_ Imp. Antigrav System temporarily disabled. 35165_ Penetrated by EMDS Slug. [Achievement: Punisher] Map ----- +----------------------------------------------------+ | ?????????????????????????????????????????????????? | | ?????????????????????????????????????????????????? | | ?????????????????????????????????????????????????? | | ??????????????????????????????>??????????????????? | | ?????????????????????????????????????????????????? | | ##??#######??????????????????????????????????????? | | # #??????????????????????????????????????? | | # #??????????????????????????????????????? | | # #??????????????????????????????????????" | | # #??????????????????????????????????????" | | # " " #??????????????????????????????????????" | | ?# " = !#??????????????????????????????????????? | | ?# ""%! #??????????????????????????????????????? | | ?? ![ #?????##########???????????????????????? | | ???? #?###?# #???????????????????????? | | ######+"#####"### #???????????????????????? | | % % % # "" #???????????????????"""?? | | [ ! # """ #?????"""???????????"""?? | | # T" #????""T""??????????"""?? | | "" # """ #????""?""??????????????? | | ?"" + " #???????????????????????? | | " # ! #???????????????????????? | | " ] #???????????????????????? | | "#########??????+####????????????? | | ### ? "############ #????????????? | | ??# ? h *%=b@ #????????????? | | # """ u k i g = ????????? | | # """ *%[g Y ????????? | | ### ! ?????????? | | ??# % ####?????????? | | ??# ############# ssp #????????????? | | ??# #????????????## ###????????????? | | ??? #?????????????? #??????????????? | | ???? / #??????????????? #??????????????? | | ???? == #???????????????? #??????????????? | | ???? =! #??"""""??????????#????????"""???? | | ????? ???""T""???????????????????"""???? | | ??????? ???????????????????????????"""???? | | ????????? ?????????????????????????????????? | | ????????????####?????????????????????????????????? | | ?????????????????????????????????????????????????? | | ?????????????????????????????????????????????????? | | ?????????????????????????????????????????????????? | | ?????????????????????????????????????????????????? | | ?????????????????????????????????????????????????? | | ?????????????????????????????????????????????????? | | ?????????????????????????????????????????????????? | | ?????????????????????????????????????????????????? | | ?????????????????????????????????????????????????? | | ?????????????????????????????????????????????????? | +----------------------------------------------------+ Best States ------------- Heat Dissipation 142 Energy Generation 59 Energy Capacity 790 Matter Stores 300 Matter Capacity 550 Sight Range 16 Robot Scan Range 30 Terrain Scan Density 85 Armor Coverage 4800 Resistance: TH 15 Resistance: EM 90 Power Shielding 66 Weapon Shielding 90 Weapon Cycling 25 Phase Shifting 20 Evasion (%) 60 Targeting Accuracy 8 Target Analysis 8 Core Analysis 10 Armor Integrity Analysis 50 Recoil Reduction 4 Particle Charging 20 Relay Coupler Types 33 Relay Coupler Value 2 Item Schematics ----------------- Exp. Sensor Array | -7/Factory | Scanalyzed Combat Drone Bay | -7/Data Miner | Free Lgt. Regenerative Plating | -7/Data Miner | Free Cmb. Gravmag System | -7/Data Miner | Free Exp. Terrain Scanner | -7/Data Miner | Free Exp. Terrain Scan Processor | -7/Data Miner | Free Cloaking Device | -7/Data Miner | Free Plasma Sword | -7/Data Miner | Free Assault Drone Bay | -4/Zhirov | Free Exp. Heat Sink | -4/Zhirov | Free Exp. Optical Array | -4/Zhirov | Free Imp. Arc Thrower | -4/Zhirov | Free Robot Schematics ------------------ S-27 Virus | -7/Data Miner | Free G-50 Soldier | -7/Data Miner | Free L-41 Fighter | -7/Data Miner | Free X-72 Disruptor | -7/Data Miner | Free P-70 Sage | -7/Data Miner | Free I-36 Angel | -7/Data Miner | Free I-47 Archangel | -7/Data Miner | Free Fabricated ------------ Nothing Alien Tech Used ----------------- Integrated Dissipator Achievements -------------- Great Explorer Punisher Woof! Challenges ------------ None Game ------ Seed AerolevFactoryMaul Manual? 0 Play Time 05:29:17 Cumulative 146.1 hours Start 2020.11.10 @ 22:00:02 End 2020.11.12 @ 16:14:00 Sessions 9 Manual Loads 0 Difficulty Rogue Special Mode Halloween2020/ForbiddenLore Game No. 169 Rogue 82 Adventurer 87 Explorer 0 Win Type - Total 4 Types 3/0/0/1/0/0/0/0/0 Lore% 59 Gallery% 68 Achievement% 57 Wizard Run 0 Options --------- ASCII 0 Keyboard 1 Movement Numpad Keybinds 0 Fullscreen 1 Font 18/Smallcaps Map View 76x50 Tactical HUD 1 Map Filters NONE Filters NONE Steam 1 RUN: 597e7f29-75ec-466e-95ff-cd936498ea70